Workbook

Sheet Д (I кв 2013 )
B1: Приложение
B2: к постановлению администрации города Мценска
B3: от 22 августа 2013 года № 31/___________ -ГС
A4: Отчёт
A5: об исполнении бюджета города Мценска
A6: за I полугодие 2013 года
A7: (в тыс.руб.) | G7: (в тыс.руб.)
A8: Код | B8: Наименование показателей | C8: План 2013 года | D8: Исполнение | F8: отклонение от плана 2013 года | G8: в сравнении с 2012г
D9: за | E9: % | G9: за | H9: темп
D10: I полугодие | E10: выпол- | G10: I квартал | H10: роста
D11: 2013 года | E11: нения | G11: 2012 года | H11: в %
A12: 000 1 00 00000 00 0000 000 | B12: НАЛОГОВЫЕ И НЕНАЛОГОВЫЕ ДОХОДЫ | C12: =C14+C24+C36+C45+C53+C77+C94+C101+C106+C120+C124+C146 -> 327414 | D12: =D14+D24+D36+D45+D53+D77+D94+D101+D106+D120+D124+D146 -> 167043.7 | E12: =D12/C12*100 -> 51.01910731 | F12: =D12-C12 -> -160370.3 | G12: =G14+G24+G36+G45+G53+G77+G94+G101+G106+G120+G124+G146 -> 60885.7 | H12: =D12/G12*100 -> 274.3562117
B13: Удельный вес (в общем объёме доходов),% | C13: =C12/C236*100 -> 49.16083313 | D13: =D12/D236*100 -> 48.40960972 | G13: =G12/G236*100 -> 
A14: 000 1 01 00000 00 0000 000 | B14: Налоги на прибыль, доходы | C14: =C16 -> 162859 | D14: =D16 -> 77738.5 | E14: =D14/C14*100 -> 47.73362234 | F14: =D14-C14 -> -85120.5 | G14: =G16 -> 32240.6 | H14: =D14/G14*100 -> 241.1198923
B15: Удельный вес (в объёме налоговых и неналоговых доходов),% | C15: =C14/C12*100 -> 49.74100069 | D15: =D14/D12*100 -> 46.53782214 | G15: =G14/G12*100 -> 52.95266376
A16: 182 1 01 02000 01 0000 110 | B16: Налог на доходы физических лиц | C16: =C20+C21+C22+C23 -> 162859 | D16: =D20+D21+D22+D23 -> 77738.5 | E16: =D16/C16*100 -> 47.73362234 | F16: =D16-C16 -> -85120.5 | G16: =G20+G21+G22+G23 -> 32240.6 | H16: =D16/G16*100 -> 241.1198923
A17: Справочно: | B17: 20% - по нормативам ч.1 п.2 ст 61.2 БК РФ | C17: =C16-(C18+C19) -> 72381.8 | D17: =D16-(D18+D19) -> 34550.5 | E17: 47.73368443 | F17: -37831.3 | G17: =G16-(G18+G19) -> 14329.1 | H17: 241.1212149
B18: 10% - единый норматив (ч.4 п.1 ст. 58 БК РФ) | C18: =ROUND(C16*10/45,1) -> 36190.9 | D18: =ROUND(D16*10/45,1) -> 17275.2 | E18: 47.73354628 | F18: -18915.7 | G18: =ROUND(G16*10/45,1) -> 7164.6 | H18: 241.1188343
B19: 15% - дополнительный норматив (п.2 ст. 58 БК РФ) | C19: =ROUND(C16*15/45,1) -> 54286.3 | D19: =ROUND(D16*15/45,1) -> 25912.8 | E19: 47.73359024 | F19: -28373.5 | G19: =ROUND(G16*15/45,1) -> 10746.9 | H19: 241.1188343
A20: 182 1 01 02010 01 1000 110 | B20: Налог на доходы физических лиц с доходов, источником которых является налоговый агент, за исключением доходов, в отношении которых исчисление и уплата налога осуществляются в соответствии со статьями 227, 227.1 и 228 Налогового кодекса Российской Федерации | C20: 162026 | D20: 77068.6 | E20: 47.5655759 | F20: -84957.4 | G20: 32071.6 | H20: 240.3016999
A21: 000 1 01 02020 01 0000 110 | B21: Налог на доходы физических лиц с доходов, полученных от осуществления деятельности физическими лицами, зарегистрированными в качестве индивидуальных предпринимателей, нотариусов, занимающихся частной практикой, адвокатов, учредивших адвокатские кабинеты и других лиц, занимающихся частной практикой в соответствии со статьей 227 Налогового кодекса Российской Федерации | C21: 400 | D21: 551.7 | E21: 137.925 | F21: 151.7 | G21: 80 | H21: 689.625
A22: 182 1 01 02030 01 0000 110 | B22: Налог на доходы физических лиц с доходов, полученных физическими лицами в соответствии со статьей 228 Налогового Кодекса Российской Федерации | C22: 400 | D22: 31.4 | E22: 7.85 | F22: -368.6 | G22: 75.6 | H22: 41.53439153
A23: 182 1 01 02040 01 0000 110 | B23: Налог на доходы физических лиц в виде фиксированных авансовых платежей с доходов, полученных физическими лицами, являющимися иностранными гражданами, осуществляющими трудовую деятельность по найму у физических лиц на основании патента в соответствии со статьей 227.1 Налогового кодекса Российской Федерации | C23: 33 | D23: 86.8 | E23: 263.030303 | F23: 53.8 | G23: 13.4 | H23: 647.761194
A24: 000 1 05 00000 00 0000 000 | B24: Налоги на совокупный доход | C24: =C26+C29+C32 -> 38023 | D24: =D26+D29+D32 -> 16032.4 | E24: 42.16500539 | F24: -21990.6 | G24: =G26+G29+G32 -> 7938.9 | H24: 201.9473731
B25: Удельный вес (в объёме собственных доходов),% | C25: =C24/C12*100 -> 11.61312589 | D25: =D24/D12*100 -> 9.59772802 | G25: =G24/G12*100 -> 13.0390223 | H25: 73.60772763
A26: 182 1 05 02000 02 0000 110 | B26: Единый налог на вмененный доход для отдельных видов деятельности | C26: =C27+C28 -> 36953 | D26: =D27+D28 -> 15245.9 | E26: 41.25754337 | F26: =D26-C26 -> -21707.1 | G26: =G27+G28 -> 7910.3 | H26: 192.7347888
A27: 182 1 05 02010 02 0000 110 | B27: - единый налог на вмененный доход для отдельных видов деятельности | C27: 36953 | D27: 15251.7 | E27: 41.27323898 | F27: -21701.3 | G27: 7021 | H27: 217.2297394
A28: 182 1 05 02020 02 0000 110 | B28: - единый налог на вмененный доход для отдельных видов деятельности (за налоговые периоды, истекшие до 1 января 2011 года) | C28: 0 | D28: -5.8 | F28: -5.8 | G28: 889.3 | H28: -0.6521983583
A29: 182 1 05 03000 01 0000 110 | B29: Единый сельскохозяйственный налог | C29: =C30+C31 -> 29 | D29: =D30+D31 -> 30.4 | E29: 104.8275862 | F29: 1.4 | G29: =G30+G31 -> 28.6 | H29: 106.2937063
A30: 182 1 05 03010 01 0000 110 | B30: - Единый сельскохозяйственный налог | C30: 29 | D30: 30.4 | E30: 104.8275862 | F30: 1.4 | G30: 28.6 | H30: 106.2937063
A31: 182 1 05 03020 01 0000 110 | B31: - Единый сельскохозяйственный налог (за налоговые периоды, истекшие до 1 января 2011 года) | C31: 0 | F31: 0
A32: 182 1 05 04000 02 0000 110 | B32: Налог, взимаемый в связи с применением патентной системы налогообложения | C32: =C33 -> 1041 | D32: =D33 -> 756.1 | E32: 72.63208453 | F32: -284.9 | G32: =G33 -> 0
A33: 182 1 05 04010 02 0000 110 | B33: - Налог, взимаемый в связи с применением патентной системы налогообложения, зачисляемый в бюджеты городских округов | C33: 1041 | D33: 756.1 | E33: 72.63208453 | F33: -284.9
A36: 000 1 06 00000 00 0000 000 | B36: Налоги на имущество | C36: =C38+C40 -> 33053 | D36: =D38+D40 -> 17468.4 | E36: 52.84966569 | F36: -15584.6 | G36: =G38+G40 -> 7940 | H36: 220.0050378
B37: Удельный вес (в объёме налоговых и неналоговых доходов),% | C37: =C36/C12*100 -> 10.09517003 | D37: =D36/D12*100 -> 10.45738331 | G37: =G36/G12*100 -> 13.04082896
A38: 000 1 06 01000 00 0000 110 | B38: Налог на имущество физических лиц | C38: =SUM(C39) -> 2038 | D38: =SUM(D39) -> 560.1 | E38: =D38/C38*100 -> 27.4828263 | F38: =D38-C38 -> -1477.9 | G38: =G39 -> 79.6 | H38: =D38/G38*100 -> 703.6432161
A39: 182 1 06 01020 04 0000 110 | B39: - налог на имущество физ-их лиц, взимаемый по ставкам, применяемым к объектам налогообложения, расположенным в границах городских округов | C39: 2038 | D39: 560.1 | E39: 27.4828263 | F39: -1477.9 | G39: 79.6 | H39: 703.6432161
A40: 182 1 06 06000 00 0000 110 | B40: Земельный налог | C40: =SUM(C41,C43) -> 31015 | D40: =SUM(D41,D43) -> 16908.3 | E40: 54.51652426 | F40: -14106.7 | G40: =SUM(G41,G43) -> 7860.4 | H40: 215.1073737
A41: 182 1 06 06010 00 0000 110 | B41: Земельный налог, взимаемый по ставкам, установленным в соотв.с подп.1 п.1 с.394 НК РФ | C41: =SUM(C42) -> 5000 | D41: =SUM(D42) -> 1114.3 | E41: 22.286 | F41: -3885.7 | G41: =SUM(G42) -> 360.1 | H41: 309.4418217
A42: 182 1 06 06012 04 0000 110 | B42: - земельный налог, взимаемый по ставкам, установленным в соответствии с подп.1 п.1 с.394 НК РФ и применяемым к объектам налогообложения, расположенным в границах городских округов | C42: 5000 | D42: 1114.3 | E42: 22.286 | F42: -3885.7 | G42: 360.1 | H42: 309.4418217
A43: 182 1 06 06020 00 0000 110 | B43: Земельный налог, взимаемый по ставкам, установленным в соотв.с подп.2 п.1 с.394 НК РФ | C43: =SUM(C44) -> 26015 | D43: =SUM(D44) -> 15794 | E43: 60.7111282 | F43: -10221 | G43: =SUM(G44) -> 7500.3 | H43: 210.5782435
A44: 182 1 06 06022 04 0000 110 | B44: - земельный налог, взимаемый по ставкам, установленным в соответствии с подп.2 п.1 с.394 НК РФ и применяемым к объектам налогообложения, расположенным в границах городских округов | C44: 26015 | D44: 15794 | E44: 60.7111282 | F44: -10221 | G44: 7500.3 | H44: 210.5782435
A45: 000 1 08 00000 00 0000 000 | B45: Государственная пошлина | C45: =SUM(C47,C49) -> 2871 | D45: =SUM(D47,D49) -> 1419.9 | E45: 49.45663532 | F45: -1451.1 | G45: =SUM(G47,G49) -> 491.4 | H45: 288.9499389
B46: Удельный вес (в объёме налоговых и неналоговых доходов),% | C46: =C45/C12*100 -> 0.8768714838 | D46: =D45/D12*100 -> 0.8500170913 | G46: =G45/G12*100 -> 0.8070860645
A47: 000 1 08 03000 01 0000 110 | B47: Государственная пошлина по делам, рассматриваемым в судах общей юрисдикции, мировыми судьями | C47: =SUM(C48) -> 2871 | D47: =SUM(D48) -> 1416.9 | E47: =D47/C47*100 -> 49.35214211 | F47: =D47-C47 -> -1454.1 | G47: =SUM(G48) -> 483.2 | H47: =D47/G47*100 -> 293.2326159
A48: 182 1 08 03010 01 0000 110 | B48: - государственная пошлина по делам, рассматриваемым в судах общей юрисдикции, мировыми судьями (за исключением Верховного Суда РФ) | C48: 2871 | D48: 1416.9 | E48: =D48/C48*100 -> 49.35214211 | F48: -1454.1 | G48: 483.2 | H48: =D48/G48*100 -> 293.2326159
A49: 000 1 08 07000 01 0000 110 | B49: Государственная пошлина за гос регистрацию, а также за совершение прочих юридически значимых действий | C49: =C50+C51+C52 -> 0 | D49: =D50+D51+D52 -> 3 | F49: 3 | G49: =G50+G51+G52 -> 8.2 | H49: =D49/G49*100 -> 36.58536585
A50: 188 1 08 07140 01 0000 110 | B50: - государственная пошлина за государственную регистрацию транспортных средств и иные юридически значимые действия, связанные с изменениями и выдачей документов на транспортные средства, регистрационных знаков, водительских удостоверений | F50: 0 | G50: 8.2 | H50: =D50/G50*100 -> 0
A51: 000 1 08 07150 01 0000 110 | B51: - государственная пошлина за выдачу разрешения на установку рекламной конструкции | D51: 3 | F51: 3
A52: 000 1 08 07173 01 0000 110 | B52: - государственная пошлина за выдачу органом местного самоуправления городского округа специального разрешения на движение по автомобильным дорогам транспортных средств, осуществляющих перевозки опасных, тяжеловесных и (или) крупногабаритных грузов, зачисляемая в бюджеты гор.округов | F52: 0
A53: 000 1 09 00000 00 0000 000 | B53: Задолженность и перерасчеты по отмененным налогам, сборам и иным обязательным платежам | C53: =C55+C57+C59+C63+C66 -> 0 | D53: =D55+D57+D59+D63+D66 -> 0.2 | F53: 0.2 | G53: =G55+G57+G59+G63+G66 -> 0.4 | H53: =D53/G53*100 -> 50
B54: Удельный вес (в объёме налоговых и неналоговых доходов),% | C54: =C53/C12*100 -> 0 | D54: =D53/D12*100 -> 0.0001197291487 | G54: =G53/G12*100 -> 0.0006569687135
A55: 000 1 09 01000 00 0000 110 | B55: Налог на прибыль организаций,зачислявшийся до 1 января 2005 года в местные бюджеты | C55: =C56 -> 0 | D55: =D56 -> 0 | F55: =D55-C55 -> 0 | G55: =G56 -> 0
A56: 182 1 09 01020 04 0000 110 | B56: - налог на прибыль организаций,зачислявшийся до 1.01.2005 года в местные бюджеты, мобилизуемый на территориях городских округов | F56: 0
A57: 182 1 09 03000 00 0000 110 | B57: Платежи за пользование природными ресурсами | D57: =D58 -> 0 | F57: 0 | G57: =G58 -> 0
A58: 182 1 09 03023 01 0000 110 | B58: Платежи за добычу подземных вод | F58: 0
A59: 000 1 09 04000 00 0000 110 | B59: Налоги на имущество | C59: =C60+C61 -> 0 | D59: =D60+D61 -> 0 | F59: 0 | G59: =G60+G61 -> 0.4 | H59: =D59/G59*100 -> 0
A60: 182 1 09 04010 02 0000 110 | B60: - Налог на имущество предприятий | F60: 0
A61: 182 1 09 04050 00 0000 110 | B61: Земельный налог (по обязательствам, возникшим до 01.01.2006 г.) | C61: =C62 -> 0 | D61: =D62 -> 0 | F61: 0 | G61: =G62 -> 0.4 | H61: =D61/G61*100 -> 0
A62: 182 1 09 04052 04 0000 110 | B62: - земельный налог (по обязат., возникшим до 01.01.2006 г.), мобилиз.на территориях гор.округов | F62: 0 | G62: 0.4 | H62: =D62/G62*100 -> 0
A63: 182 1 09 06000 02 0000 110 | B63: Прочие налоги и сборы (по отменённым налогам и сборам субъектов РФ) | C63: =C64+C65 -> 0 | D63: =D64+D65 -> 0 | F63: 0 | G63: =G64+G65 -> 0
A64: 182 1 09 06010 02 0000 110 | B64: - налог с продаж | F64: 0
A65: 182 1 09 06020 02 0000 110 | B65: - сбор на нужды образ.учр-ний, взим. с юр.лиц | F65: 0
A66: 000 1 09 07000 00 0000 110 | B66: Прочие налоги и сборы (по отменённым местным налогам и сборам ) | C66: =C67+C69+C71 -> 0 | D66: =D67+D69+D71 -> 0.2 | F66: 0.2 | G66: =G67+G69+G71 -> 0
A67: 000 1 09 07010 00 0000 110 | B67: налог на рекламу | C67: =C68 -> 0 | D67: =D68 -> 0 | F67: 0 | G67: =G68 -> 0
A68: 000 1 09 07012 04 0000 110 | B68: - налог на рекламу, мобилизуемый на территориях городских округов | F68: 0
A69: 000 1 09 07030 00 0000 110 | B69: целевые сборы с граждан и предприятий, учрежд., организаций на содержание милиции, на благоустр. территории, на нужды образования и другие цели | C69: =C70 -> 0 | D69: =D70 -> 0.2 | F69: 0.2 | G69: =G70 -> 0
A70: 000 1 09 07032 04 0000 110 | B70: - целевые сборы с граждан и предприятий, учрежде-ний, организаций на содержание милиции, на благо-устройство территории, на нужды образования и другие цели, мобилизуемые на территориях городских округов | D70: 0.2 | F70: 0.2
A71: 000 1 09 07050 00 0000 110 | B71: прочие местные налоги и сборы | C71: =C72 -> 0 | D71: =D72 -> 0 | F71: 0 | G71: =G72 -> 0
A72: 000 1 09 07052 04 0000 110 | B72: - прочие местные налоги и сборы, мобилизуемые на территориях городских округов | F72: 0
A73: Итого налоговых доходов | C73: =C14+C24+C36+C45+C53 -> 236806 | D73: =D14+D24+D36+D45+D53 -> 112659.4 | E73: =D73/C73*100 -> 47.5745547 | F73: -124146.6 | G73: =G14+G24+G36+G45+G53 -> 48611.3 | H73: =D73/G73*100 -> 231.7555795
B74: Удельный вес (в общем объёме доходов),% | C74: =C73/C236*100 -> 35.55614681 | D74: =D73/D236*100 -> 32.64892711 | G74: =G73/G236*100 -> 
B75: Удельный вес (в объёме налоговых и неналоговых доходов),% | C75: =C73/C12*100 -> 72.32616809 | D75: =D73/D12*100 -> 67.44307029 | G75: =G73/G12*100 -> 79.84025806
A77: 000 1 11 00000 00 0000 000 | B77: Доходы от использования имущества, находящихся в гос. и муницыпальной собственности | C77: =C79+C82+C91 -> 25630 | D77: =D79+D82+D91 -> 15099.6 | E77: =D77/C77*100 -> 58.91377292 | F77: =D77-C77 -> -10530.4 | G77: =G79+G82+G91 -> 4981.2 | H77: =D77/G77*100 -> 303.1317755
B78: Удельный вес (в объёме налоговых и неналоговых доходов),% | C78: =C77/C12*100 -> 7.828009798 | D78: =D77/D12*100 -> 9.03931127 | G78: =G77/G12*100 -> 8.181231389
A79: 00 1 11 02000 00 0000 000 | B79: Доходы от размещения средств бюджетов | C79: =C80 -> 0 | D79: =D80 -> 0 | F79: =D79-C79 -> 0 | G79: =G80 -> 0
A80: 000 1 11 02080 00 0000 120 | B80: Доходы от размещения сумм, аккумулируемых в ходе проведения аукционов по продаже акций, находящихся в государственной и муниципальной собственности | C80: =C81 -> 0 | D80: =D81 -> 0 | F80: 0 | G80: =G81 -> 0
A81: 892 1 11 02084 04 0000 120 | B81: - доходы от размещения сумм, аккумулируемых в ходе проведения аукционов по продаже акций, находящихся в собственности городских округов | F81: 0
A82: 000 1 11 05000 00 0000 120 | B82: Доходы, получаемые в виде арендной либо иной платы за передачу в возмездное пользование гос. и муниц.имущества (за исключением имущества бюджетных и автономных учреждений, а также имущества государственных и муниципальных унитарных предприятий, в том числе казенных) | C82: =C84+C86+C88 -> 25223 | D82: =D84+D86+D88 -> 14692.6 | E82: =D82/C82*100 -> 58.25080284 | F82: -10530.4 | G82: =G84+G86+G88 -> 4824.8 | H82: =D82/G82*100 -> 304.5224673
B83: Арендная плата за земли (свод) | C83: =C84+C86 -> 14594 | D83: =D84+D86 -> 8972 | E83: 61.47731945 | F83: -5622 | G83: =G84+G86 -> 1386.9 | H83: 646.9103757
A84: 000 1 11 05010 00 0000 120 | B84: Доходы, получаемые в виде арендной платы за земельные участки, гос. собственность на которые не разграничена, а также средства от продажи права на заключение договоров аренды указанных земельных участков | C84: =SUM(C85:C85) -> 12494 | D84: =SUM(D85:D85) -> 8129.8 | E84: 65.06963342 | F84: -4364.2 | G84: =SUM(G85:G85) -> 993 | H84: 818.7109768
A85: 892 1 11 05012 04 0000 120 | B85: - доходы, получаемые в виде арендной платы за земельные участки, гос собственность на которые не разграничена и которые расположены в границах городских округов, а также средства от продажи права на заключение договоров аренды указанных земельных участков | C85: 12494 | D85: 8129.8 | E85: 65.06963342 | F85: -4364.2 | G85: 993 | H85: 818.7109768
A86: 000 1 11 05020 00 0000 120 | B86: Доходы, получаемые в виде арендной платы за земли после разграничения гос. соб-ти на землю, а также ср-ва от продажи права на заключ договоров аренды указанных зем. участков (за исключением зем. участков бюдж.и автономных учреждений) | C86: =C87 -> 2100 | D86: =D87 -> 842.2 | E86: 40.1047619 | F86: -1257.8 | G86: =G87 -> 393.9 | H86: 213.8106118
A87: 892 1 11 05024 04 0000 120 | B87: - доходы, получаемые в виде арендной платы, а также средства от продажи права на заключ. договоров аренды за земли, находящиеся в собст-сти городских округов (за исключ. зем. участков мун.бюдж. и автон-ых учр-ий) | C87: 2100 | D87: 842.2 | E87: 40.1047619 | F87: -1257.8 | G87: 393.9 | H87: 213.8106118
A88: 000 1 11 05030 00 0000 120 | B88: Доходы от сдачи в аренду имущества, находяще-гося в оперативном управлении органов гос. власти, органов местного самоуправления, гос.внебюдж.фондов и созданных ими учрежд. (за искл. имущ-ва бюджетных и автономных учреждений) | C88: =C89+C90 -> 10629 | D88: =D89+D90 -> 5720.6 | E88: 53.82067927 | F88: -4908.4 | G88: =G89+G90 -> 3437.9 | H88: 166.3980919
A89: 892 1 11 05034 04 0005 120 | B89: - доходы от сдачи в аренду имущества, находя-щегося в оперативном управлении органов управ-ления гор. округов и созданных ими учреждений (за исключ имущ-ва мун.бюдж. и автономных учрежд.) | C89: 550 | D89: 208 | E89: 37.81818182 | F89: -342 | G89: 105.1 | H89: 197.9067555
A90: 892 1 11 05034 04 0003 120 | B90: - доходы от сдачи в аренду имущества, находя-щегося в оперативном управлении органов управ-ления гор. округов и созданных ими учреждений (за исключ имущ-ва мун.бюдж. и автономных учрежд.) | C90: 10079 | D90: 5512.6 | E90: 54.69391805 | F90: -4566.4 | G90: 3332.8 | H90: 165.4044647
A91: 000 1 11 07000 00 0000 120 | B91: Платежи от государственных и муниципальных унитарных предприятий | C91: =C92 -> 407 | D91: =D92 -> 407 | E91: 100 | F91: 0 | G91: =G92 -> 156.4 | H91: 260.230179
A92: 892 1 11 07010 00 0000 120 | B92: Доходы от перечисления части прибыли государственных и муниципальных унитарных предприятий, остающейся после уплаты налогов и иных обязательных платежей | C92: =SUM(C93) -> 407 | D92: =SUM(D93) -> 407 | E92: 100 | F92: 0 | G92: =SUM(G93) -> 156.4 | H92: 260.230179
A93: 892 1 11 07014 04 0000 120 | B93: - доходы от перечисления части прибыли, остающейся после уплаты налогов и иных обязательных платежей муниц. унитарных предприятий, созданных городскими округами | C93: 407 | D93: 407 | E93: 100 | F93: 0 | G93: 156.4 | H93: 260.230179
A94: 000 1 12 00000 00 0000 000 | B94: Платежи при пользовании природными ресурсами | C94: =SUM(C96) -> 1489 | D94: =SUM(D96) -> 416.9 | E94: 27.99865682 | F94: -1072.1 | G94: =SUM(G96) -> 217.6 | H94: 191.5900735
B95: Удельный вес (в объёме налоговых и неналоговых доходов),% | C95: =C94/C12*100 -> 0.4547759106 | D95: =D94/D12*100 -> 0.2495754105 | G95: =G94/G12*100 -> 0.3573909801 | H95: 69.83259913
A96: 000 1 12 01000 01 0000 120 | B96: Плата за негативное воздействие на окружающую среду | C96: =C97+C98+C99+C100 -> 1489 | D96: =D97+D98+D99+D100 -> 416.9 | E96: 27.99865682 | F96: =D96-C96 -> -1072.1 | G96: =G97+G98+G99+G100 -> 217.6 | H96: 191.5900735
A97: 000 1 12 01010 01 0000 120 | B97: - плата за выбросы загрязн-х в-в в атм.воздух стационарными объектами | C97: 210 | D97: 52.1 | E97: 24.80952381 | F97: -157.9 | G97: 32.5 | H97: 160.3076923
A98: 000 1 12 01020 01 0000 120 | B98: - плата за выбросы загрязн-х в-в в атм.воздух передвижными объектами | C98: 15 | D98: 9.7 | E98: 64.66666667 | F98: -5.3 | G98: 1.8 | H98: 538.8888889
A99: 000 1 12 01030 01 0000 120 | B99: - плата за сбросы загрязняющих веществ в водные объекты | C99: 125 | D99: 63.1 | E99: 50.48 | F99: -61.9 | G99: 19.4 | H99: 325.257732
A100: 000 1 12 01040 01 0000 120 | B100: - плата за размещение отходов производства и потребления | C100: 1139 | D100: 292 | E100: 25.63652327 | F100: -847 | G100: 163.9 | H100: 178.1574131
A101: 000 1 13 00000 00 0000 000 | B101: Доходы от оказания платных услуг (работ) и компенсации затрат государства | C101: =C103 -> 13764 | D101: =D103 -> 5647.9 | E101: 41.03385644 | F101: -8116.1 | G101: =G103 -> 2778.9 | H101: 203.2422901
B102: Удельный вес (в объёме собственных доходов),% | C102: =C101/C12*100 -> 4.203852004 | D102: =D101/D12*100 -> 3.381091295 | G102: =G101/G12*100 -> 4.564125895 | H102: 74.0797115
A103: 000 1 13 02000 00 0000 130 | B103: Доходы от компенсации затрат государства | C103: =SUM(C104) -> 13764 | D103: =SUM(D104) -> 5647.9 | E103: 41.03385644 | F103: =D103-C103 -> -8116.1 | G103: =SUM(G104) -> 2778.9 | H103: 203.2422901
A104: 892 1 13 02990 00 0000 130 | B104: Прочие доходы от компенсации затрат государства | C104: =C105 -> 13764 | D104: =D105 -> 5647.9 | E104: 41.03385644 | F104: =D104-C104 -> -8116.1 | G104: =G105 -> 2778.9 | H104: 203.2422901
A105: 892 1 13 02994 04 0000 130 | B105: - прочие доходы от компенсации затрат бюджетов городских округов | C105: 13764 | D105: 5647.9 | E105: 41.03385644 | F105: =D105-C105 -> -8116.1 | G105: 2778.9 | H105: 203.2422901
A106: 000 1 14 00000 00 0000 000 | B106: Доходы от продажи материальных и нематериальных активов | C106: =C108+C110+C113 -> 43901 | D106: =D108+D110+D113 -> 29995.1 | E106: =D106/C106*100 -> 68.32441174 | F106: =D106-C106 -> -13905.9 | G106: =G108+G110+G113 -> 3270.7 | H106: =D106/G106*100 -> 917.0850277
B107: Удельный вес (в объёме налоговых и неналоговых доходов),% | C107: =C106/C12*100 -> 13.40840648 | D107: =D106/D12*100 -> 17.95643894 | G107: =G106/G12*100 -> 5.371868928
A108: 000 1 14 01000 00 0000 410 | B108: Доходы от продажи квартир | C108: =SUM(C109) -> 20 | D108: =SUM(D109) -> 6.5 | E108: =D108/C108*100 -> 32.5 | F108: =D108-C108 -> -13.5 | G108: =SUM(G109) -> 8.8 | H108: =D108/G108*100 -> 73.86363636
A109: 892 1 14 01040 04 0000 410 | B109: - доходы от продажи квартир, нах-ся в собст. гор. округов | C109: 20 | D109: 6.5 | E109: 32.5 | F109: -13.5 | G109: 8.8 | H109: 73.86363636
A110: 000 1 14 02000 00 0000 000 | B110: Доходы от реализации имуществава, наход-ся в гос.и муниц.соб-ти (за исключ.имущ.бюдж и авт.учр., а также имущ-ва гос.и мун.унит.предпр., в т. ч.казенных) | C110: =C111 -> 42648 | D110: =D111 -> 27607.6 | E110: 64.73363346 | F110: -15040.4 | G110: =G111 -> 2949.6 | H110: 935.9777597
A111: 000 1 14 02040 04 0000 000 | B111: Доходы от реализации имущества, находящегося в соб-ти городских округов ( за исключением имущества муниципальных бюджетных и автономных учреждений, а также имущества мун. унитарных предприятий, в том числе казенных), в части реализации осн.ср-в по указанному им-ву | C111: =C112 -> 42648 | D111: =D112 -> 27607.6 | E111: 64.73363346 | F111: -15040.4 | G111: =G112 -> 2949.6 | H111: 935.9777597
A112: 000 1 14 02043 04 0000 000 | B112: - доходы от реализации иного имущества, находящегося в соб-ти городских округов (за исключением имущества муниципальных бюджетных и автономных учреждений, а также имущества мун. унитарных предприятий, в том числе казенных), в части реализации осн.ср-в по указанному им-ву | C112: 42648 | D112: 27607.6 | E112: 64.73363346 | F112: -15040.4 | G112: 2949.6 | H112: 935.9777597
A113: 000 1 14 06000 00 0000 430 | B113: Доходы от продажи земельных участков, находящихся в гос. и мун. соб-ти (за исключением земельных участков бюдж. и автономных учреждений) | C113: =C114+C116 -> 1233 | D113: =D114+D116 -> 2381 | E113: 193.1062449 | F113: 1148 | G113: =G114+G116 -> 312.3 | H113: 762.4079411
A114: 000 1 14 06010 00 0000 430 | B114: Доходы от продажи земельных участков, гос.соб-ть на которые не разграничена | C114: =C115 -> 1233 | D114: =D115 -> 2358.8 | E114: 191.3057583 | F114: 1125.8 | G114: =G115 -> 307.1 | H114: 768.0885705
A115: 892 1 14 06012 04 0000 430 | B115: - доходы от продажи земельных участков, гос.соб-ть на которые не разграничена и которые расположены в границах гор.окр. | C115: 1233 | D115: 2358.8 | E115: 191.3057583 | F115: 1125.8 | G115: 307.1 | H115: 768.0885705
A116: 000 1 14 06020 00 0000 430 | B116: Доходы от продажи земельных участков, гос.соб-ть на которые разграничена (за исключением зем.участков бюджет. и автон. учреждений) | C116: =C117 -> 0 | D116: =D117 -> 22.2 | F116: 22.2 | G116: =G117 -> 5.2 | H116: 426.9230769
A117: 892 1 14 06024 04 0000 430 | B117: - доходы от продажи земельных участков, нах.в соб-ти гор.окр. (за исключением земельных участков мун.бюдж. и автон. учреждений) | C117: 0 | D117: 22.2 | F117: 22.2 | G117: 5.2 | H117: 426.9230769
A120: 000 1 15 00000 00 0000 000 | B120: Административные платежи и сборы | C120: =C122 -> 640 | D120: =D122 -> 599 | E120: =D120/C120*100 -> 93.59375 | F120: -41 | G120: =G122 -> 139.4 | H120: 429.6987088
B121: Удельный вес (в объёме налоговых и неналоговых доходов),% | C121: =C120/C12*100 -> 0.1954711772 | D121: =D120/D12*100 -> 0.3585888004 | G121: =G120/G12*100 -> 0.2289535967 | H121: 156.6207326
A122: 000 1 15 02000 00 0000 140 | B122: Платежи, взимаемые гос. и муниц. органами (организациями) за выполнение определенных функций | C122: =SUM(C123) -> 640 | D122: =SUM(D123) -> 599 | E122: =D122/C122*100 -> 93.59375 | F122: =D122-C122 -> -41 | G122: =SUM(G123) -> 139.4 | H122: 429.6987088
A123: 000 1 15 02040 04 0000 140 | B123: - платежи, взимаемые органами местного самоуправления (организациями) городских округов за выполнение определенных функций | C123: 640 | D123: 599 | E123: =D123/C123*100 -> 93.59375 | F123: =D123-C123 -> -41 | G123: 139.4 | H123: 429.6987088
A124: 000 1 16 00000 00 0000 000 | B124: Штрафы, санкции, возмещение ущерба | C124: =C126+C129+C130+C131+C133+C138+C139+C140+C142+C144 -> 4407 | D124: =D126+D129+D130+D131+D133+D138+D139+D140+D142+D143+D144 -> 1699.2 | E124: =D124/C124*100 -> 38.55684139 | F124: =D124-C124 -> -2707.8 | G124: =G126+G129+G130+G131+G133+G138+G139+G140+G142+G144 -> 812.9 | H124: 209.0294009
B125: Удельный вес (в объёме налоговых и неналоговых доходов),% | C125: =C124/C12*100 -> 1.346002309 | D125: =D124/D12*100 -> 1.017218848 | G125: =G124/G12*100 -> 1.335124668
A126: 000 1 16 03000 00 0000 140 | B126: Денежные взыскания (штрафы) за нарушение закон-ва о налогах и сборах | C126: =SUM(C127:C128) -> 310 | D126: =SUM(D127:D128) -> 32.1 | E126: =D126/C126*100 -> 10.35483871 | F126: =D126-C126 -> -277.9 | G126: =SUM(G127:G128) -> 15.4 | H126: =D126/G126*100 -> 208.4415584
A127: 182 1 16 03010 01 0000 140 | B127: - денежные взыскания (штрафы) за нарушение законодательства о налогах и сборах, предусмотренные статьями 116, 118, 1191, пунктами 1 и 2 статьи 120, статьями 125, 126, 128, 129, 1291, 132, 133, 134, 135, 1351 НК РФ, а также штрафы, взыскание которых осуществляется на основании ранее действовавшей статьи 117 НК РФ | C127: 150 | D127: 12.9 | E127: 8.6 | F127: -137.1 | G127: 4.7 | H127: 274.4680851
A128: 182 1 16 03030 01 0000 140 | B128: - денежные взыскания (штрафы) за административные правонарушения в области налогов и сборов, предусм-ные Кодексом РФ об администр-ных правонарушениях | C128: 160 | D128: 19.2 | E128: 12 | F128: -140.8 | G128: 10.7 | H128: 179.4392523
A129: 000 1 16 06000 01 0000 140 | B129: Денежные взыскания (штрафы) за нарушение закон-ва о прим-и контр.-кас.техники при осущ-нии наличных ден-ых расчётов и (или) расчётов с использ.платёжных карт | C129: 280 | D129: 32 | E129: 11.42857143 | F129: -248 | G129: 13 | H129: 246.1538462
A130: 182 1 16 08000 01 0000 140 | B130: Денежные взыскания (штрафы) за адм-ные правонар-ия в обл-ти госуд-ого регулирования произ-ва и оборота этил. спирта, алкогольной, спиртосодержащей и табачной продукции | C130: 0 | D130: 0 | F130: 0 | G130: 0.5 | H130: 0
A131: 000 1 16 21000 00 0000 140 | B131: Денежные взыскания (штрафы) и иные суммы, взыскиваемые с лиц, виновных в совершении преступлений, и в возмещение ущерба имуществу | C131: =C132 -> 650 | D131: =D132 -> 20 | E131: 3.076923077 | F131: -630 | G131: =G132 -> 105.3 | H131: 18.99335233
A132: 000 1 16 21040 04 0000 140 | B132: - денежные взыскания (штрафы) и иные суммы, взыск.с лиц, виновных в совершении прест-ий, и в возмещение ущерба им-ву, зачисляемые в б-ты городских округов | C132: 650 | D132: 20 | E132: 3.076923077 | F132: -630 | G132: 105.3 | H132: 18.99335233
A133: 000 1 16 25000 01 0000 140 | B133: Денежные взыскания (штрафы) за нарушение зак-ва о недрах, об особо охраняемых природных тер-ях, об охране и испол-нии животного мира, об эколог-ой эксп-зе, в области охраны окр.среды, земель-ного зак-ва, лесного зак-ва, водного зак-ва | C133: =C134+C135+C136+C137 -> 75 | D133: =D134+D135+D136+D137 -> 23.2 | E133: 30.93333333 | F133: -51.8 | G133: =G134+G135+G136+G137 -> 22.5 | H133: 103.1111111
A134: 000 1 16 25010 01 0000 140 | B134: -денежные взыскания (штрафы) за нарушение закон-ва РФ о недрах | C134: 9 | D134: 6.6 | E134: 73.33333333 | F134: -2.4 | G134: 1 | H134: 660
A135: 000 1 16 25030 01 0000 140 | B135: -денежные взыскания (штрафы) за наруш. зак-ва РФ об охране и испол. животного мира | C135: 6 | D135: 0 | E135: 0 | F135: -6 | G135: 0
A136: 000 1 16 25050 01 0000 140 | B136: -денежные взыскания (штрафы) за нарушение зак-ва в области охраны окружающей среды | C136: 30 | D136: 9 | E136: 30 | F136: -21 | G136: 19 | H136: 47.36842105
A137: 000 1 16 25060 01 0000 140 | B137: -денежные взыскания (штрафы) за нарушение земельного законодательства | C137: 30 | D137: 7.6 | E137: 25.33333333 | F137: -22.4 | G137: 2.5 | H137: 304
A138: 141 1 16 28000 01 0000 140 | B138: Денежные взыскания (штрафы) за нарушение закон-ва в обл-ти обеспечения санитарно-эпидем-ого благополучия человека и закон-ва в сфере защиты прав потребителей | C138: 960 | D138: 25.3 | E138: 2.635416667 | F138: -934.7 | G138: 159.6 | H138: 15.85213033
A139: 188 1 16 30000 01 0000 140 | B139: Денежные взыскания (штрафы) за административные правонарушения в области дорожного движения | C139: 0 | D139: 13.1 | F139: 13.1 | G139: 0.3 | H139: 4366.666667
A140: 000 1 16 33000 00 0000 140 | B140: Денежные взыскания (штрафы) за нарушение законодательства Российской Федерации о размещении заказов на поставки товаров, выполнетие работ, оказание услуг | C140: =C141 -> 20 | D140: =D141 -> 0 | E140: 0 | F140: -20 | G140: =G141 -> 13 | H140: 0
A141: 000 1 16 33040 04 0000 140 | B141: -денежные взыскания (штрафы) за нарушение законодательства Российской Федерации о размещении заказов на поставки товаров, выполнетие работ, оказание услуг для нужд городских округов | C141: 20 | D141: 0 | E141: 0 | F141: -20 | G141: 13 | H141: 0
A142: 000 1 16 43000 01 0000 140 | B142: Денежные взыскания (штрафы) за нарушение законодательства РФ об админ-х правонарушениях, предусмотренные статьей 20.25 Кодекса РФ об административных правонарушениях | C142: 12 | D142: 34.5 | E142: 287.5 | F142: 22.5 | G142: 1 | H142: 3450
A143: 000 116 45000 01 0000 140 | B143: Денежные взыскания (штрафы) за нарушения законодательства Российской Федерации о промышленной безопасности | C143: 0 | D143: 82 | F143: 82 | G143: 0
A144: 000 1 16 90000 00 0000 140 | B144: Прочие поступления от денежных взысканий (штрафов) и иных сумм в возмещение ущерба | C144: =C145 -> 2100 | D144: =D145 -> 1437 | E144: 68.42857143 | F144: -663 | G144: =G145 -> 482.3 | H144: 297.9473357
A145: 000 1 16 90040 04 0000 140 | B145: - прочие поступления от денежных взысканий (штрафов) и иных сумм в возмещение ущерба, зачисляемые в бюджеты городских округов | C145: 2100 | D145: 1437 | E145: 68.42857143 | F145: -663 | G145: 482.3 | H145: 297.9473357
A146: 000 1 17 00000 00 0000 000 | B146: Прочие неналоговые доходы | C146: =C149+C151 -> 777 | D146: =D149+D151 -> 926.6 | E146: 119.2535393 | F146: 149.6 | G146: =G149+G151 -> 73.7 | H146: 1257.259159
B147: Удельный вес (в объёме налоговых и неналоговых доходов),% | C147: =C146/C12*100 -> 0.237314226 | D147: =D146/D12*100 -> 0.554705146 | G147: =G146/G12*100 -> 0.1210464855
A148: 000 1 17 01000 00 0000 180 | B148: Невыясненные поступления | C148: =C149 -> 0 | D148: =D149 -> 22 | F148: =D148-C148 -> 22 | G148: =G149 -> 65.3 | H148: =D148/G148*100 -> 33.6906585
A149: 000 1 17 01040 04 0000 180 | B149: Невыясненные поступления, зачисляемые в бюджеты городских округов | C149: 0 | D149: 22 | F149: =D149-C149 -> 22 | G149: 65.3 | H149: =D149/G149*100 -> 33.6906585
A150: 000 1 17 05000 00 0000 180 | B150: Прочие неналоговые доходы | C150: =C151 -> 777 | D150: =D151 -> 904.6 | E150: 116.4221364 | F150: =D150-C150 -> 127.6 | G150: =G151 -> 8.4 | H150: =D150/G150*100 -> 10769.04762
A151: 892 1 17 05040 04 0000 180 | B151: Прочие неналоговые доходы бюджетов городских округов | C151: 777 | D151: 904.6 | E151: 116.4221364 | F151: =D151-C151 -> 127.6 | G151: 8.4 | H151: =D151/G151*100 -> 10769.04762
A152: Итого неналоговых доходов | C152: =C77+C94+C101+C106+C120+C124+C146 -> 90608 | D152: =D77+D94+D101+D106+D120+D124+D146 -> 54384.3 | E152: =D152/C152*100 -> 60.02152128 | F152: =D152-C152 -> -36223.7 | G152: =G77+G94+G101+G106+G120+G124+G146 -> 12274.4 | H152: =D152/G152*100 -> 443.0709444
B153: Удельный вес (в общем объёме доходов),% | C153: =C152/C236*100 -> 13.60468633 | D153: =D152/D236*100 -> 15.76068261 | G153: =G152/G236*100 -> 
B154: Удельный вес (в объёме налоговых и неналоговых доходов),% | C154: =C152/C12*100 -> 27.67383191 | D154: =D152/D12*100 -> 32.55692971 | G154: =G152/G12*100 -> 20.15974194
A156: 000 2 00 00000 00 0000 000 | B156: Безвоздмездные поступления | C156: =C158 -> 338591.8 | D156: =D158 -> 178019.4 | E156: =D156/C156*100 -> 52.57640616 | F156: =D156-C156 -> -160572.4 | G156: =G158 ->  | H156: =D156/G156*100 -> 
B157: Удельный вес (в общем объёме доходов),% | C157: =C156/C236*100 -> 50.83916687 | D157: =D156/D236*100 -> 51.59039028 | G157: =G156/G236*100 ->  | H157: =D157/G157*100 -> 
A158: 000 2 02 00000 00 0000 000 | B158: Бюджетные поступления от других бюджетов бюджетной системы РФ, кроме бюджетов государственных внебюджетных фондов | C158: =C159+C163+C190+C216 -> 338591.8 | D158: =D159+D163+D190+D216 -> 178019.4 | E158: =D158/C158*100 -> 52.57640616 | F158: =D158-C158 -> -160572.4 | G158: =G159+G163+G190+G216 ->  | H158: =D158/G158*100 -> 
A159: 000 2 02 02000 00 0000 151 | B159: Дотации (всего) | C159: =C160+C161+C162 -> 15350 | D159: =D160+D161+D162 -> 9552.5 | E159: 62.23127036 | F159: -5797.5 | G159: =G160+G161+G162 -> 5741 | H159: =D159/G159*100 -> 166.3908727
A160: 000 2 02 01001 04 0000 151 | B160: Дотация на выравнивание бюджетной обеспеченности | C160: 15350 | D160: 9552.5 | E160: 62.23127036 | F160: -5797.5 | G160: 5741 | H160: =D160/G160*100 -> 166.3908727
A161: 000 2 02 01003 04 0000 151 | B161: Дотация на поддержку мер по обеспечению сбалансированности бюджетов | C161: 0 | D161: 0 | F161: 0 | G161: 0
A162: 000 2 02 01009 04 0000 151 | B162: Дотация на поощрение достижения наилучших показателей деятельности органов местного самоуправления | C162: 0 | D162: 0 | F162: 0 | G162: 0
A163: 000 2 02 02000 00 0000 151 | B163: Субсидии (всего) | C163: =C164+C167+C168+C169+C172+C175+C178+C182 -> 146966.5 | D163: =D164+D167+D168+D169+D172+D175+D178+D182 -> 51264.4 | E163: 34.88169073 | F163: -95702.1 | G163: =G164+G167+G168+G169+G172+G175+G178+G182 -> 14091 | H163: =D163/G163*100 -> 363.8095238
A164: 000 2 02 02008 04 0000 151 | B164: На обеспечение жильём молодых семей | C164: =C165+C166 -> 91.1 | D164: =D165+D166 -> 91.1 | E164: 100 | F164: 0 | G164: =G165+G166 -> 0
A165: в том числе: | B165: - за счёт федеральных средств | C165: 0 | F165: 0
B166: - за счёт областных средств | C166: 91.1 | D166: 91.1 | E166: 100 | F166: 0
A167: 000 2 02 02041 04 0000 151 | B167: На строительство, модернизацию, ремонт и содержание автомобильных дорог общего пользования | C167: 81620.8 | D167: 17039.8 | E167: 20.87678631 | F167: -64581 | H167: =D167/G167*100 -> 
A168: 000 2 02 02051 04 0000 151 | B168: На реализацию федеральных целевых программ | F168: 0 | G168: 0
A169: 000 2 02 02077 04 0000 151 | B169: На бюджетные инвестиции в объекты капитального строительства собственности муниципальных образований | C169: =C170+C171 -> 35958 | D169: =D170+D171 -> 18247.8 | E169: 50.7475388 | F169: -17710.2 | G169: =G170+G171 -> 0
A170: в том числе: | B170: - на строительство II очереди спорткомплекса школы №9 | C170: 32900 | D170: 18247.8 | E170: 55.46443769 | F170: -14652.2
B171: - на строительство объектов дорожной инфраструктуры в целях повышения безопасности дорожного движения | C171: 3058 | E171: 0 | F171: -3058
A172: 000 2 02 02088 04 0000 151 | B172: На обеспечение мероприятий по капитальному ремонту многоквартирных домов, по переселению граждан из аварийного жилищного фонда и модернизации систем коммунальной инфраструктуры за счёт средств, поступивших от государственной корпорации - Фонда содействия реформированию жилищно-коммунального хозяйства | C172: =C173+C174 -> 0 | D172: =D173+D174 -> 5039.9 | F172: =D172-C172 -> 5039.9
A173: 000 2 02 02088 04 0001 151 | B173: на обеспечение мероприятий по капитальному ремонту многоквартирных домов за счёт средств, поступивших от государственной корпорации - Фонда содействия реформированию жилищно-коммунального хозяйства | D173: 2589.4 | F173: 2589.4
A174: 000 2 02 02088 04 0002 151 | B174: на обеспечение мероприятий по переселению граждан из аварийного жилищного фондаза счёт средств, поступивших от государственной корпорации - Фонда содействия реформированию жилищно-коммунального хозяйства | D174: 2450.5 | F174: 2450.5
A175: 000 2 02 02089 04 0000 151 | B175: На обеспечение мероприятий по капитальному ремонту многоквартирных домов, по переселению граждан из аварийного жилищного фонда и модернизации систем коммунальной инфраструктуры за счёт средств бюджетов | C175: =C176+C177 -> 0 | D175: =D176+D177 -> 3057.5 | F175: 3057.5
A176: 000 2 02 02089 04 0001 151 | B176: на обеспечение мероприятий по капитальному ремонту многоквартирных домов за счёт средств бюджетов | D176: 1358.9 | F176: 1358.9
A177: 000 2 02 02089 04 0002 151 | B177: на обесп меропр по переселению граждан из аварийного жилищного фонда за счёт средств бюджетов | D177: 1698.6 | F177: 1698.6
A178: 000 2 02 02145 04 0000 151 | B178: На модернизацию региональных систем общего образования | C178: =C179+C180+C181 -> 5000 | D178: =D179+D180+D181 -> 0 | E178: 0 | F178: -5000 | G178: =G179+G180+G181 -> 0
A179: в том числе: | B179: - на текущий ремонт | C179: 5000 | E179: 0 | F179: -5000
C180: 0 | F180: 0 | H180: =D180/G180*100 -> 
C181: 0 | F181: 0
A182: 000 2 02 02999 04 0000 151 | B182: Прочие субсидии | C182: =C183+C184+C185+C186+C187+C188+C189 -> 24296.6 | D182: =D183+D184+D185+D186+D187+D188+D189 -> 7788.3 | E182: 32.05510236 | F182: -16508.3 | G182: =G183+G184+G185+G186+G187+G188+G189 -> 14091 | H182: =D182/G182*100 -> 55.27144986
A183: в том числе: | B183: на питание учащимся (50% затрат) и за молоко (100%) | C183: 10415.5 | D183: 7554.2 | E183: 72.52844319 | F183: -2861.3 | G183: 3274.7 | H183: =D183/G183*100 -> 230.6837268
B184: на организацию летнего отдыха | C184: 262.1 | D184: 172.1 | E184: 65.66196108 | F184: -90 | G184: 0
B185: на капитальный ремонт и ремонт дворовых территорий многоквартирных домов, проездов к дворовым территориям многоквартирных домов | C185: 13557 | D185: 0 | E185: 0 | F185: -13557
B186: на поэтапное введение отраслевой системы оплаты труда работников муниципальных учреждений культуры | C186: 0 | F186: 0
B187: на внедрение отраслевой системы оплаты труда в муниципальных образовательных учреждениях, реализующих программу дошкольного образования | C187: 0 | F187: 0 | G187: 10816.3
B188: - на реализацию областной цел.программы "Развитие сети дошкольных образовательных учреждений в Орловской области на 2011-2015 годы" | C188: 0 | F188: 0
B189: - на реализацию долгосрочной областной цел.программы "Развитие отрасли культуры в Орловской области на 2011-2015 годы" | C189: 62 | D189: 62 | E189: 100 | F189: 0
A190: 000 2 02 03000 00 0000 151 | B190: Субвенции (всего) | C190: =C191+C192+C193+C194+C195+C198+C204+C205+C206+C207+C208+C209 -> 174627.3 | D190: =D191+D192+D193+D194+D195+D198+D204+D205+D206+D207+D208+D209 -> 115655.5 | E190: 66.22990792 | F190: -58971.8 | G190: =G191+G192+G193+G194+G195+G198+G204+G205+G206+G207+G208+G209 ->  | H190: =D190/G190*100 -> 
A191: 000 2 02 03002 04 0000 151 | B191: Перепись | F191: 0 | G191: 230.9 | H191: 0
A192: 000 2 02 03003 04 0000 151 | B192: ЗАГС | E192: =D192/C192*100 ->  | F192: 0 | G192: 394 | H192: 0
A193: 000 2 02 03007 04 0000 151 | B193: На составление (изменение) списков кандидатов присяжных заседателей | F193: 0 | G193: 0
A194: 000 2 02 03020 04 0000 151 | B194: На выплату единовременных пособий при всех формах устройства детей, лишённых родительского попечения, в семью | C194: 261.8 | D194: 39.3 | E194: 15.01145913 | F194: =D194-C194 -> -222.5 | G194: 0
A195: 000 2 02 03021 04 0000 151 | B195: Классное руководство | C195: =C196+C197 -> 5843.4 | D195: =D196+D197 -> 3263 | E195: 55.84077763 | F195: -2580.4 | G195: =G196+G197 -> 720.7 | H195: 452.7542667
A196: в том числе: | B196: - за счёт федеральных средств | C196: 2921.7 | D196: 1645.6 | E196: 56.32337338 | F196: -1276.1 | G196: 720.7
B197: - за счёт областных средств | C197: 2921.7 | D197: 1617.4 | E197: 55.35818188 | F197: -1304.3 | G197: 0
A198: 000 2 02 03024 04 0000 151 | B198: На выполнение передаваемых полномочй субъектов | C198: =C199+C200+C201+C202+C203 -> 2304.5 | D198: =D199+D200+D201+D202+D203 -> 1033.3 | E198: 44.83835973 | F198: -1271.2 | G198: =G199+G200+G201+G202+G203+#REF! ->  | H198: =D198/G198*100 -> 
A199: в том числе: | B199: - Административная комиссия | C199: 213.8 | D199: 106 | E199: 49.57904584 | F199: -107.8 | G199: 49 | H199: 216.3265306
B200: - Комиссия по делам несовершеннолетних | C200: 497.4 | D200: 211.1 | E200: 42.4406916 | F200: -286.3 | G200: 70 | H200: 301.5714286
B201: - Полномочия в сфере трудовых отношений | C201: 213.8 | D201: 100.4 | E201: 46.95977549 | F201: -113.4 | G201: 51 | H201: 196.8627451
B202: - Отдел опеки и попечительства | C202: 1161.5 | D202: 499.7 | E202: 43.02195437 | F202: -661.8 | G202: 206 | H202: 242.5728155
B203: - Обеспечение бесплатного проезда детям из числа детей-сирот | C203: 218 | D203: 116.1 | E203: 53.25688073 | F203: -101.9 | G203: 70.2 | H203: 165.3846154
A204: 000 2 02 03026 04 0000 151 | B204: - На обеспечение жилыми помещениями детей-сирот, детей, оставшихся без попечения родителей, а также детей, находящихся под опекой (попечительством), не имеющих закреплённого жилого помещения | C204: 4131.6 | D204: 4131.6 | E204: 100 | F204: 0 | G204: 2970 | H204: =D204/G204*100 -> 139.1111111
A205: 000 2 02 03027 04 0000 151 | B205: -На содержание ребёнка в семье опекуна и приёмной семье, а также вознаграждение, причитающееся приёмному родителю | C205: 4336.6 | D205: 1597.3 | E205: 36.83300281 | F205: -2739.3 | G205: 884.6 | H205: =D205/G205*100 -> 180.5674881
A206: 000 2 02 03029 04 0000 151 | B206: -На выплату компенсации части родительской платы за содержание ребёнка в муниципальных дошкольных учреждениях | C206: 3941.1 | D206: 2150 | E206: 54.5532973 | F206: -1791.1 | G206: 1000 | H206: =D206/G206*100 -> 215
... 35 more rows

Sheet Р (I кв 2013 )
C1: Расходы
A2: Код | B2: Наименование показателей | C2: План 2013 года | D2: Финансирование | F2: отклонение от плана 2013 года | G2: Кассовое исполнение
D3: за | E3: % | G3: за I полугодие 2013 года
D4: I полугодие | E4: выпол- | G4: Сумма | H4: % выпол- нения | I4: Остатки на лицевом счете
D5: 2013 года | E5: нения
A6: 01 00 | B6: Общегосударственные вопросы | C6: =C8+C9+C13+C14+C15+C18+C21+C22 -> 48057 | D6: =D8+D9+D13+D14+D15+D18+D21+D22 -> 22157.7 | E6: =D6/C6 -> 0.4610712279 | F6: =C6-D6 -> 25899.3 | G6: =G8+G9+G13+G14+G15+G18+G21+G22 -> 22157.7 | H6: =G6/C6 -> 0.4610712279 | I6: =D6-G6 -> 0
B7: Удельный вес (%) | C7: =C6/C408*100 -> 7.167974961 | D7: =D6/D408*100 -> 6.74200688 | G7: =G6/G408*100 -> 6.74200688
A8: 01 02 | B8: Глава города | C8: 1024 | D8: 530.6 | E8: =D8/C8 -> 0.5181640625 | F8: =C8-D8 -> 493.4 | G8: 530.6 | H8: =G8/C8 -> 0.5181640625 | I8: =D8-G8 -> 0
A9: 01 03 | B9: Мценский городской Совет народных депутатов | C9: =C10+C11+C12 -> 5177 | D9: =D10+D11+D12 -> 2615.4 | E9: =D9/C9 -> 0.5051960595 | F9: =C9-D9 -> 2561.6 | G9: =G10+G11+G12 -> 2615.4 | H9: =G9/C9 -> 0.5051960595 | I9: =D9-G9 -> 0
A10: в т.ч | B10: Совет (аппарат) | C10: 2514 | D10: 1199.4 | E10: =D10/C10 -> 0.4770883055 | F10: =C10-D10 -> 1314.6 | G10: 1199.4 | H10: =G10/C10 -> 0.4770883055 | I10: 0
B11: Председатель горсовета | C11: 1024 | D11: 592.1 | E11: 0.5782226563 | F11: =C11-D11 -> 431.9 | G11: 592.1 | H11: 0.5782226563 | I11: 0
B12: Депутаты горсовета | C12: 1639 | D12: 823.9 | E12: 0.5026845638 | F12: 815.1 | G12: 823.9 | H12: 0.5026845638 | I12: 0
A13: 01 04 | B13: Администрация города (аппарат) | C13: 24864 | D13: 11584.1 | E13: 0.4658984878 | F13: 13279.9 | G13: 11584.1 | H13: 0.4658984878 | I13: 0
A14: 01 05 | B14: Судебная система (составление (изменение и дополнение) списков кандидатов в присяжные заседатели) | E14: =D14/C14 ->  | F14: 0 | H14: =G14/C14 ->  | I14: 0
A15: 01 06 | B15: Финансовые органы и органы финансового (финансово - бюджетного) надзора | C15: =C16+C17 -> 5755 | D15: =D16+D17 -> 2800 | E15: =D15/C15 -> 0.4865334492 | F15: =C15-D15 -> 2955 | G15: =G16+G17 -> 2800 | H15: =G15/C15 -> 0.4865334492 | I15: 0
A16: в т.ч | B16: Финансовое управление администрации города | C16: 4531 | D16: 2158 | E16: 0.4762745531 | F16: =C16-D16 -> 2373 | G16: 2158 | H16: =G16/C16 -> 0.4762745531 | I16: 0
B17: Контрольно-счётная палата | C17: 1224 | D17: 642 | E17: 0.5245098039 | F17: =C17-D17 -> 582 | G17: 642 | H17: =G17/C17 -> 0.5245098039 | I17: 0
A18: 01 07 | B18: Выборы | C18: =C19+C20 -> 0 | F18: 0 | I18: 0
A19: в т.ч | B19: Выборы депутатов горсовета | C19: 0 | F19: 0 | H19: =G19/C19 ->  | I19: 0
B20: Выборы главы города | C20: 0 | F20: 0 | I20: 0
A21: 01 11 | B21: Резервные фонды местных администраций | C21: 400 | D21: 0 | E21: 0 | F21: 400 | G21: 0 | H21: 0 | I21: 0
A22: 01 13 | B22: Другие общегосударственные вопросы (всего) | C22: =C27+C28+C29+C30+C31+C32 -> 10837 | D22: =D27+D28+D29+D30+D31+D32 -> 4627.6 | E22: 0.4270185476 | F22: 6209.4 | G22: =G27+G28+G29+G30+G31+G32 -> 4627.6 | H22: 0.4270185476 | I22: 0
A23: в т.ч | B23: Управление по муниципальному имуществу города | C23: 5611 | D23: 2625.6 | E23: 0.467937979 | F23: 2985.4 | G23: 2625.6 | H23: 0.467937979 | I23: 0
B24: Административная комиссия | C24: 213.8 | D24: 97.5 | E24: 0.4560336763 | F24: 116.3 | G24: 97.5 | H24: 0.4560336763 | I24: 0
B25: Комиссия по делам несовершеннолетних | C25: 497.4 | D25: 211.1 | E25: 0.424406916 | F25: 286.3 | G25: 211.1 | H25: 0.424406916 | I25: 0
B26: Полномочия в сфере трудовых отношений | C26: 213.8 | D26: 86.6 | E26: 0.40505145 | F26: 127.2 | G26: 86.6 | H26: 0.40505145 | I26: 0
B27: Итого:(по управлению по имуществу и переданным полномочиям) | C27: =C23+C24+C25+C26 -> 6536 | D27: =D23+D24+D25+D26 -> 3020.8 | E27: 0.4621787026 | F27: 3515.2 | G27: =G23+G24+G25+G26 -> 3020.8 | H27: 0.4621787026 | I27: 0
B28: Прочие расходы (Приложение 1) | C28: 2127 | D28: 493.8 | E28: 0.232157969 | F28: 1633.2 | G28: 493.8 | H28: 0.232157969 | I28: 0
B29: Денежная премия за лучшее состояние условий и охраны труда | F29: 0 | I29: 0
B30: Грант за достижение наилучших показателей деятельности органов местного самоуправления | E30: =D30/C30 ->  | F30: =C30-D30 -> 0 | H30: =G30/C30 ->  | I30: =D30-G30 -> 0
B31: Оценка недвижимости, признание прав и регулирование отношений по гос. и муниципальной собственности | C31: 2174 | D31: 1113 | E31: 0.5119595216 | F31: 1061 | G31: 1113 | H31: 0.5119595216 | I31: 0
B32: ЗАГС | F32: 0 | I32: =D32-G32 -> 0
A34: 04 00 | B34: Национальная экономика | C34: =C36+C56 -> 136055.8 | D34: =D36+D56 -> 35395.5 | E34: =D34/C34 -> 0.2601542896 | F34: 100660.3 | G34: =G36+G56 -> 35395.5 | H34: =G34/C34 -> 0.2601542896 | I34: =D34-G34 -> 0
B35: Удельный вес (%) | C35: =C34/C408*100 -> 20.29349663 | D35: =D34/D408*100 -> 10.76992217 | G35: =G34/G408*100 -> 10.76992217
A36: 04 09 | B36: Дорожное хозяйство (дорожные фонды) | C36: =C37+C46 -> 135925.8 | D36: =D37+D46 -> 35395.5 | E36: =D36/C36 -> 0.2604031023 | F36: =C36-D36 -> 100530.3 | G36: =G37+G46 -> 35395.5 | H36: =G36/C36 -> 0.2604031023 | I36: =D36-G36 -> 0
A37: Строительство, реконструкция, капитальный ремонт и содержание сети автомобильных дорог общего пользования местного значения и искусственных сооружений на них | C37: =C38+C39+C40+C41+C42+C43 -> 35849.9 | D37: =D38+D39+D40+D41+D42+D43 -> 16466.8 | E37: =D37/C37 -> 0.4593262464 | F37: 19383.1 | G37: =G38+G39+G40+G41+G42+G43 -> 16466.8 | H37: 0.4593262464 | I37: 0
A38: в том числе: | B38: - санитарное содержание дорог и сооружений на них | C38: 12778 | D38: 7460 | E38: =D38/C38 -> 0.5838159336 | F38: 5318 | G38: 7460 | H38: 0.5838159336 | I38: 0
B39: - ремонт дорог и сооружений на них | C39: 10917.6 | D39: 6943.1 | E39: =D39/C39 -> 0.6359547886 | F39: 3974.5 | G39: 6943.1 | H39: 0.6359547886 | I39: 0
B40: - строительство дорог | C40: 986.7 | D40: 737.5 | E40: =D40/C40 -> 0.7474409648 | F40: 249.2 | G40: 737.5 | H40: 0.7474409648 | I40: 0
B41: - городская целевая программа "Обеспечение безопасности дорожного движения в городе Мценске на 2011-2015 годы" | C41: 7214.4 | D41: 1326.2 | E41: 0.1838267909 | F41: =C41-D41 -> 5888.2 | G41: 1326.2 | H41: 0.1838267909 | I41: =D41-G41 -> 0
B42: - по предложениям избирателей (ремонт дорог и сооружений на них) | C42: 200 | D42: 0 | E42: 0 | F42: =C42-D42 -> 200 | G42: 0 | H42: 0 | I42: =D42-G42 -> 0
B43: - строительство объектов дорожной инфраструктуры в целях повышения безопасности дорожного движения | C43: =C44+C45 -> 3753.2 | D43: =D44+D45 -> 0 | E43: =D43/C43 -> 0 | F43: =C43-D43 -> 3753.2 | G43: =G44+G45 -> 0 | H43: =G43/C43 -> 0 | I43: =D43-G43 -> 0
B44: в т.ч: - за счёт средств дорожного фонда | C44: 3058 | D44: 0 | E44: =D44/C44 -> 0 | F44: =C44-D44 -> 3058 | G44: 0 | H44: =G44/C44 -> 0 | I44: =D44-G44 -> 0
B45: - за счёт собственных средств (в доле софинансирования) | C45: 695.2 | D45: 0 | E45: =D45/C45 -> 0 | F45: =C45-D45 -> 695.2 | G45: 0 | H45: =G45/C45 -> 0 | I45: =D45-G45 -> 0
A46: Содержание и развитие дорожного хозяйства | C46: =C47+C50+C53 -> 100075.9 | D46: =D47+D50+D53 -> 18928.7 | E46: 0.1891434401 | F46: 81147.2 | G46: =G47+G50+G53 -> 18928.7 | H46: 0.1891434401 | I46: 0
A47: в том числе: | B47: - ремонт улично-дорожной сети (свод) | C47: =C48+C49 -> 86518.9 | D47: =D48+D49 -> 18928.7 | E47: 0.2187810987 | F47: 67590.2 | G47: =G48+G49 -> 18928.7 | H47: 0.2187810987 | I47: 0
B48: в т.ч: - за счёт средств дорожного фонда | C48: 85449.2 | D48: 18674.6 | E48: 0.218546224 | F48: 66774.6 | G48: 18674.6 | H48: 0.218546224 | I48: 0
B49: - за счёт собственных средств (в доле софинансирования) | C49: 1069.7 | D49: 254.1 | E49: 0.2375432364 | F49: 815.6 | G49: 254.1 | H49: 0.2375432364 | I49: 0
B50: - ремонт проездов к дворовым территориям многоквартирных домов и дворовых территорий многоквартирных домов (свод) | C50: =C51+C52 -> 13557 | D50: =D51+D52 -> 0 | E50: 0 | F50: 13557 | G50: =G51+G52 -> 0 | H50: 0 | I50: 0
B51: в т.ч: - за счёт средств дорожного фонда | C51: 13557 | D51: 0 | E51: 0 | F51: 13557 | G51: 0 | H51: 0 | I51: 0
B52: - за счёт собственных средств (в доле софинансирования) | C52: 0 | D52: 0 | F52: 0 | G52: 0 | I52: 0
B53: - строительство дорог | C53: =C54+C55 -> 0 | D53: =D54+D55 -> 0 | F53: =C53-D53 -> 0 | G53: =G54+G55 -> 0 | I53: =D53-G53 -> 0
B54: в т.ч: - за счёт средств дорожного фонда | C54: 0 | D54: 0 | F54: =C54-D54 -> 0 | G54: 0 | I54: =D54-G54 -> 0
B55: - за счёт собственных средств (в доле софинансирования) | C55: 0 | D55: 0 | F55: =C55-D55 -> 0 | G55: 0 | I55: =D55-G55 -> 0
A56: 04 12 | B56: Другие вопросы в области национальной экономики | C56: =C57+C58 -> 130 | D56: =D57+D58 -> 0 | E56: =D56/C56 -> 0 | F56: 130 | G56: =G57+G58 -> 0 | H56: =G56/C56 -> 0 | I56: =I57+I58 -> 0
A57: в т.ч. | B57: Архитектура и градостроительство | C57: 50 | D57: 0 | E57: =D57/C57 -> 0 | F57: =C57-D57 -> 50 | G57: 0 | H57: =G57/C57 -> 0 | I57: =D57-G57 -> 0
B58: Городская целевая программа "Стимумирование развития жилищного строительства на 2011-2015 годы в городе Мценске Орловской области" | C58: 80 | D58: 0 | E58: =D58/C58 -> 0 | F58: 80 | G58: 0 | H58: =G58/C58 -> 0 | I58: 0
A61: 05 00 | B61: Жилищно-коммунальное хозяйство | C61: =C63+C85+C88+C103 -> 37426.9 | D61: =D63+D85+D88+D103 -> 9056.1 | E61: =D61/C61 -> 0.2419676757 | F61: 28370.8 | G61: =G63+G85+G88+G103 -> 9056.1 | H61: =G61/C61 -> 0.2419676757 | I61: =D61-G61 -> 0
B62: Удельный вес (%) | C62: =C61/C408*100 -> 5.582435068 | D62: =D61/D408*100 -> 2.755533675 | G62: =G61/G408*100 -> 2.755533675
A63: 05 01 | B63: Жилищное хозяйство | C63: =C64+C74+C77 -> 12579.9 | D63: =D64+D74+D77 -> 20 | E63: =D63/C63 -> 0.001589837757 | F63: 12559.9 | G63: =G64+G74+G77 -> 20 | H63: =G63/C63 -> 0.001589837757 | I63: =D63-G63 -> 0
A64: в том числе: | B64: "Обеспечение мероприятий по капитальному ремонту многоквартирных домов и переселение граждан из аварийного жилищного фонда и модернизации систем коммунальной инфраструктуры" - (всего) | C64: =C65+C68+C71 -> 2987.3 | D64: =D65+D68+D71 -> 0 | E64: =D64/C64 -> 0 | F64: 2987.3 | G64: =G65+G68+G71 -> 0 | H64: 0 | I64: 0
B65: в т.ч.- за счёт гос.корпорации Фонда содействия реформированию ЖКХ | C65: =C66+C67 -> 0 | D65: =D66+D67 -> 0 | F65: 0 | G65: =G66+G67 -> 0 | I65: 0
B66: - по капремонту (за счёт Фонда) | C66: 0 | D66: 0 | F66: 0 | G66: 0 | I66: 0
B67: - по переселению (за счёт Фонда) | C67: 0 | D67: 0 | G67: 0 | I67: 0
B68: - по капремонту (за счёт бюджетов) - всего | C68: =C69+C70 -> 731.7 | D68: =D69+D70 -> 0 | E68: =D68/C68 -> 0 | F68: =C68-D68 -> 731.7 | G68: =G69+G70 -> 0 | H68: 0 | I68: =D68-G68 -> 0
B69: - по капремонту (за счёт областного бюджета) | C69: 0 | D69: 0 | F69: =C69-D69 -> 0 | G69: 0 | I69: =D69-G69 -> 0
B70: - по капремонту (за счёт городского бюджета) | C70: 731.7 | D70: 0 | E70: =D70/C70 -> 0 | F70: =C70-D70 -> 731.7 | G70: 0 | H70: 0 | I70: =D70-G70 -> 0
B71: - по переселению (за счёт бюджетов) - всего | C71: =C72+C73 -> 2255.6 | D71: =D72+D73 -> 0 | E71: 0 | F71: 2255.6 | G71: =G72+G73 -> 0 | H71: 0 | I71: 0
B72: - по переселению (за счёт областного бюджета) | C72: 0 | D72: 0 | F72: 0 | G72: 0 | I72: 0
B73: - по переселению (за счёт городского бюджета) | C73: 2255.6 | D73: 0 | E73: 0 | F73: 2255.6 | G73: 0 | H73: 0 | I73: 0
B74: Ремонт проездов к дворовым территориям многоквартирных домов и дворовых территорий многоквартирных домов (свод) | C74: =C75+C76 -> 1329.5 | D74: =D75+D76 -> 0 | E74: =D74/C74 -> 0 | F74: =C74-D74 -> 1329.5 | G74: =G75+G76 -> 0 | H74: 0 | I74: 0
B75: в т.ч: - за счёт средств дорожного фонда | C75: 0 | D75: 0 | F75: =C75-D75 -> 0 | G75: 0 | I75: 0
B76: - за счёт собственных средств (в доле софинансирования) | C76: 1329.5 | D76: 0 | E76: =D76/C76 -> 0 | F76: =C76-D76 -> 1329.5 | G76: 0 | H76: 0 | I76: 0
B77: Поддержка жилищного хозяйства (всего) | C77: =C78+C82 -> 8263.1 | D77: =D78+D82 -> 20 | E77: 0.002420399124 | F77: 8243.1 | G77: =G78+G82 -> 20 | H77: 0.002420399124 | I77: 0
B78: - Капремонт жилого фонда (всего) | C78: =C79+C80+C81 -> 6585.1 | D78: =D79+D80+D81 -> 20 | E78: 0.003037159648 | F78: 6565.1 | G78: =G79+G80+G81 -> 20 | H78: 0.003037159648 | I78: 0
B79: в т.ч. - городская целевая программа "Замена и модернизация лифтов в многоквартирных жилых домах города Мценска, отработавших нормативный срок службы, на 2012-2015 годы" | C79: 0 | E79: =D79/C79 ->  | F79: =C79-D79 -> 0 | I79: 0
B80: - капитальный ремонт жилого дома № 30 по ул.Мира | C80: 6500 | D80: 20 | E80: =D80/C80 -> 0.003076923077 | F80: =C80-D80 -> 6480 | G80: 20 | H80: 0.003076923077 | I80: 0
B81: - доля собственника по кап рем (15% за счёт гор.бюджета) | C81: 85.1 | D81: 0 | E81: 0 | F81: 85.1 | G81: 0 | H81: 0 | I81: 0
B82: - Мероприятия в области жилищного хозяйства | C82: =C83+C84 -> 1678 | D82: =D83+D84 -> 0 | E82: 0 | F82: 1678 | G82: =G83+G84 -> 0 | H82: 0 | I82: 0
B83: в т.ч. - по предложениям избирателей | C83: 1268 | D83: 0 | E83: 0 | F83: 1268 | G83: 0 | H83: 0 | I83: 0
B84: - наказы избирателей депутатам областного Совета | C84: 410 | D84: 0 | E84: 0 | F84: 410 | G84: 0 | H84: 0 | I84: 0
A85: 05 02 | B85: Коммунальное хозяйство | C85: =C86+C87 -> 901 | D85: =D86+D87 -> 900.9 | E85: 0.9998890122 | F85: 0.1 | G85: =G86+G87 -> 900.9 | H85: 0.9998890122 | I85: 0
A86: в т.ч. | B86: - Убытки по бане | C86: 310 | D86: 310 | E86: 1 | F86: 0 | G86: 310 | H86: 1 | I86: 0
B87: - На изготовление схемы теплоснабжения города | C87: 591 | D87: 590.9 | E87: =D87/C87 -> 0.9998307953 | F87: =C87-D87 -> 0.1 | G87: 590.9 | H87: 0.9998307953 | I87: =D87-G87 -> 0
A88: 05 03 | B88: Благоустройство | C88: =C89+C93+C96+C99 -> 15944 | D88: =D89+D93+D96+D99 -> 5598.4 | E88: =D88/C88 -> 0.3511289513 | F88: 10345.6 | G88: =G89+G93+G96+G99 -> 5598.4 | H88: 0.3511289513 | I88: 0
A89: в том числе: | B89: Уличное освещение | C89: =C90+C91+C92 -> 8277.2 | D89: =D90+D91+D92 -> 3769.8 | E89: 0.4554438699 | F89: 4507.4 | G89: =G90+G91+G92 -> 3769.8 | H89: 0.4554438699 | I89: 0
B90: в т.ч. - уличное освещение | C90: 7015.2 | D90: 3321.8 | E90: 0.4735146539 | F90: 3693.4 | G90: 3321.8 | H90: 0.4735146539 | I90: 0
B91: - ТО уличных сетей | C91: 1262 | D91: 448 | E91: 0.3549920761 | F91: 814 | G91: 448 | H91: 0.3549920761 | I91: 0
B92: - строительство линий уличного освещения | C92: 0 | F92: =C92-D92 -> 0 | I92: =D92-G92 -> 0
B93: Озеленение | C93: =C94+C95 -> 2088.5 | D93: =D94+D95 -> 890.9 | E93: 0.4265740962 | F93: 1197.6 | G93: =G94+G95 -> 890.9 | H93: 0.4265740962 | I93: 0
B94: в т.ч. - бюджет | C94: 1988.5 | D94: 890.9 | E94: 0.4480261504 | F94: 1097.6 | G94: 890.9 | H94: 0.4480261504 | I94: 0
B95: - по предложениям избирателей | C95: 100 | E95: 0 | F95: 100 | H95: 0 | I95: 0
B96: Организация и содержание мест захоронения | C96: =C97+C98 -> 2513.9 | D96: =D97+D98 -> 234.3 | E96: 0.093201798 | F96: 2279.6 | G96: =G97+G98 -> 234.3 | H96: 0.093201798 | I96: 0
B97: в т.ч. - бюджет | C97: 2483.9 | D97: 234.3 | E97: 0.0943274689 | F97: 2249.6 | G97: 234.3 | H97: 0.0943274689 | I97: 0
B98: - по предложениям избирателей | C98: 30 | F98: 30 | I98: 0
B99: Прочие мероприятия по благоустройству | C99: =C100+C101+C102 -> 3064.4 | D99: =D100+D101+D102 -> 703.4 | E99: 0.2295392246 | F99: 2361 | G99: =G100+G101+G102 -> 703.4 | H99: 0.2295392246 | I99: 0
B100: в т.ч. - бюджет | C100: 1590.4 | D100: 703.4 | E100: 0.442278672 | F100: =C100-D100 -> 887 | G100: 703.4 | H100: 0.442278672 | I100: 0
B101: - городская целевая программа "Обращение с отходами производства и потребления на территории г.Мценска (2012-2014годы)" | C101: 434 | D101: 0 | E101: =D101/C101 -> 0 | F101: 434 | G101: 0 | H101: 0 | I101: =D101-G101 -> 0
B102: - по предложениям избирателей | C102: 1040 | D102: 0 | E102: =D102/C102 -> 0 | F102: 1040 | G102: 0 | H102: 0 | I102: 0
A103: 05 05 | B103: Другие вопросы в области ЖКХ | C103: =C104+C105 -> 8002 | D103: =D104+D105 -> 2536.8 | E103: 0.3170207448 | F103: 5465.2 | G103: =G104+G105 -> 2536.8 | H103: 0.3170207448 | I103: 0
A104: в т.ч. | B104: Управление жилищно-коммунального хозяйства | C104: 5132 | D104: 2536.8 | E104: 0.4943102104 | F104: 2595.2 | G104: 2536.8 | H104: 0.4943102104 | I104: 0
B105: Городская целевая программа "Комплексное развитие систем коммунальной инфраструктуры города Мценска на 2011-2025 годы" | C105: 2870 | D105: 0 | E105: 0 | F105: 2870 | G105: 0 | H105: 0 | I105: 0
A108: 07 00 | B108: Образование | C108: =C110+C111+C112+C113 -> 400908.2 | D108: =D110+D111+D112+D113 -> 236950.9 | E108: 0.5910353043 | F108: =C108-D108 -> 163957.3 | G108: =G110+G111+G112+G113 -> 236950.9 | H108: =G108/C108 -> 0.5910353043 | I108: =D108-G108 -> 0
B109: Удельный вес (%) | C109: =C108/C408*100 -> 59.79773892 | D109: =D108/D408*100 -> 72.09794329 | G109: =G108/G408*100 -> 72.09794329
A110: 07 01 | B110: - Дошкольное образование | C110: =C158 -> 124789 | D110: =D158 -> 74276.3 | E110: =D110/C110 -> 0.5952151231 | F110: 50512.7 | G110: =G158 -> 74276.3 | H110: =G110/C110 -> 0.5952151231 | I110: =D110-G110 -> 0
A111: 07 02 | B111: - Общее образование | C111: =C311 -> 229403.4 | D111: =D311 -> 137500.1 | E111: 0.5993812646 | F111: 91903.3 | G111: =G311 -> 137500.1 | H111: 0.5993812646 | I111: 0
A112: 07 07 | B112: - Молодежная политика и оздоровление детей | C112: =C315 -> 4159.2 | D112: =D315 -> 1889.4 | E112: 0.4542700519 | F112: 2269.8 | G112: =G315 -> 1889.4 | H112: 0.4542700519 | I112: 0
A113: 07 09 | B113: - Другие вопросы в области образования | C113: =C323 -> 42556.6 | D113: =D323 -> 23285.1 | E113: 0.5471560228 | F113: 19271.5 | G113: =G323 -> 23285.1 | H113: 0.5471560228 | I113: 0
A114: Субсидия учреждениям дошкольного образования - на выполнение муниципального задания (всего) | C114: =C115+C116+C117+C118+C119+C120+C121+C122+C123+C124+C125+C126 -> 122828 | D114: =D115+D116+D117+D118+D119+D120+D121+D122+D123+D124+D125+D126 -> 73544.2 | E114: =D114/C114 -> 0.5987576123 | F114: =C114-D114 -> 49283.8 | G114: =G115+G116+G117+G118+G119+G120+G121+G122+G123+G124+G125+G126 -> 73544.2 | H114: =G114/C114 -> 0.5987576123 | I114: =D114-G114 -> 0
A115: в том числе: | B115: МБДОУ детский сад № 1 | C115: 7982 | D115: 4414.3 | E115: 0.5530318216 | F115: 3567.7 | G115: 4414.3 | H115: 0.5530318216 | I115: 0
B116: МБДОУ детский сад № 4 | C116: 14652.8 | D116: 8647 | E116: 0.5901261192 | F116: 6005.8 | G116: 8647 | H116: 0.5901261192 | I116: 0
B117: МБДОУ детский сад № 5 | C117: 7277 | D117: 4194.5 | E117: 0.576405112 | F117: 3082.5 | G117: 4194.5 | H117: 0.576405112 | I117: 0
B118: МБДОУ детский сад № 6 | C118: 6001.5 | D118: 3606.9 | E118: 0.6009997501 | F118: 2394.6 | G118: 3606.9 | H118: 0.6009997501 | I118: 0
B119: МБДОУ детский сад № 7 | C119: 6471.7 | D119: 4094.2 | E119: 0.6326313024 | F119: 2377.5 | G119: 4094.2 | H119: 0.6326313024 | I119: 0
B120: МБДОУ детский сад № 9 | C120: 10241 | D120: 6305 | E120: 0.615662533 | F120: 3936 | G120: 6305 | H120: 0.615662533 | I120: 0
B121: МБДОУ детский сад № 10 | C121: 11148.7 | D121: 6486.5 | E121: 0.5818167141 | F121: 4662.2 | G121: 6486.5 | H121: 0.5818167141 | I121: 0
B122: МБДОУ детский сад № 11 | C122: 11267.1 | D122: 6250.7 | E122: 0.5547745205 | F122: 5016.4 | G122: 6250.7 | H122: 0.5547745205 | I122: 0
B123: МБДОУ детский сад № 12 | C123: 10988.7 | D123: 6543.8 | E123: 0.5955026527 | F123: 4444.9 | G123: 6543.8 | H123: 0.5955026527 | I123: 0
B124: МБДОУ детский сад № 13 | C124: 11243.8 | D124: 7494.1 | E124: 0.666509543 | F124: 3749.7 | G124: 7494.1 | H124: 0.666509543 | I124: 0
B125: МБДОУ детский сад № 14 | C125: 12549.2 | D125: 7660.4 | E125: 0.6104293501 | F125: 4888.8 | G125: 7660.4 | H125: 0.6104293501 | I125: 0
B126: МБДОУ детский сад № 15 | C126: 13004.5 | D126: 7846.8 | E126: 0.6033911338 | F126: 5157.7 | G126: 7846.8 | H126: 0.6033911338 | I126: 0
A127: Субсидии учреждениям дошкольного образования - на иные цели (всего) | C127: =C128+C129 -> 1961 | D127: =D128+D129 -> 732.1 | E127: =D127/C127 -> 0.3733299337 | F127: 1228.9 | G127: =G128+G129 -> 732.1 | H127: =G127/C127 -> 0.3733299337 | I127: 0
A128: в т.ч. | B128: - за счёт собственных средств | C128: =C130+C143+C156 -> 1761 | D128: =D130+D143+D156 -> 632.1 | E128: =D128/C128 -> 0.3589437819 | F128: 1128.9 | G128: =G130+G143+G156 -> 632.1 | H128: =G128/C128 -> 0.3589437819 | I128: 0
B129: - за счёт федеральных и областных средств | C129: =C152+C153+C154+C157 -> 200 | D129: =D152+D153+D154+D157 -> 100 | E129: =D129/C129 -> 0.5 | F129: 100 | G129: =G152+G153+G154+G157 -> 100 | H129: =G129/C129 -> 0.5 | I129: 0
A130: в том числе: | B130: Муниципальная целевая программа "Развитие сети дошкольных образовательных учреждений города Мценска на 2011- 2016 годы" (всего) | C130: =C131+C132+C133+C134+C135+C136+C137+C138+C139+C140+C141+C142 -> 1571 | D130: =D131+D132+D133+D134+D135+D136+D137+D138+D139+D140+D141+D142 -> 457.1 | E130: =D130/C130 -> 0.2909611712 | F130: =C130-D130 -> 1113.9 | G130: =G131+G132+G133+G134+G135+G136+G137+G138+G139+G140+G141+G142 -> 457.1 | H130: =G130/C130 -> 0.2909611712 | I130: =D130-G130 -> 0
B131: - МБДОУ детский сад № 1 | C131: 62 | D131: 0 | E131: 0 | F131: 62 | G131: 0 | H131: 0 | I131: 0
B132: - МБДОУ детский сад № 4 | C132: 65 | D132: 30.7 | E132: 0.4723076923 | F132: 34.3 | G132: 30.7 | H132: 0.4723076923 | I132: 0
B133: - МБДОУ детский сад № 5 | C133: 42 | D133: 0 | E133: 0 | F133: 42 | G133: 0 | H133: 0 | I133: 0
B134: - МБДОУ детский сад № 6 | C134: 84 | D134: 79.8 | E134: 0.95 | F134: 4.2 | G134: 79.8 | H134: 0.95 | I134: 0
B135: - МБДОУ детский сад № 7 | C135: 70 | D135: 6.1 | E135: 0.08714285714 | F135: 63.9 | G135: 6.1 | H135: 0.08714285714 | I135: 0
B136: - МБДОУ детский сад № 9 | C136: 107 | D136: 9 | E136: 0.08411214953 | F136: 98 | G136: 9 | H136: 0.08411214953 | I136: 0
B137: - МБДОУ детский сад № 10 | C137: 34 | D137: 0 | E137: 0 | F137: 34 | G137: 0 | H137: 0 | I137: 0
B138: - МБДОУ детский сад № 11 | C138: 112 | D138: 22.8 | E138: 0.2035714286 | F138: 89.2 | G138: 22.8 | H138: 0.2035714286 | I138: 0
B139: - МБДОУ детский сад № 12 | C139: 560 | D139: 24.2 | E139: 0.04321428571 | F139: 535.8 | G139: 24.2 | H139: 0.04321428571 | I139: 0
B140: - МБДОУ детский сад № 13 | C140: 289 | D140: 235.5 | E140: 0.8148788927 | F140: 53.5 | G140: 235.5 | H140: 0.8148788927 | I140: 0
B141: - МБДОУ детский сад № 14 | C141: 58 | D141: 10.9 | E141: 0.1879310345 | F141: 47.1 | G141: 10.9 | H141: 0.1879310345 | I141: 0
B142: - МБДОУ детский сад № 15 | C142: 88 | D142: 38.1 | E142: 0.4329545455 | F142: 49.9 | G142: 38.1 | H142: 0.4329545455 | I142: 0
B143: По предложениям избирателей (всего) | C143: =C144+C145+C146+C147+C148+C149+C150+C151 -> 190 | D143: =D144+D145+D146+D147+D148+D149+D150+D151 -> 175 | E143: =D143/C143 -> 0.9210526316 | F143: =C143-D143 -> 15 | G143: =G144+G145+G146+G147+G148+G149+G150+G151 -> 175 | H143: =G143/C143 -> 0.9210526316 | I143: 0
B144: - МБДОУ детский сад № 5 | C144: 20 | D144: 20 | E144: 1 | F144: 0 | G144: 20 | H144: 1 | I144: 0
B145: - МБДОУ детский сад № 6 | C145: 25 | D145: 25 | E145: =D145/C145 -> 1 | F145: =C145-D145 -> 0 | G145: 25 | H145: =G145/C145 -> 1 | I145: =D145-G145 -> 0
B146: - МБДОУ детский сад № 7 | C146: 50 | D146: 50 | E146: 1 | F146: 0 | G146: 50 | H146: 1 | I146: 0
B147: - МБДОУ детский сад № 9 | C147: 25 | D147: 25 | E147: 1 | F147: 0 | G147: 25 | H147: 1 | I147: 0
B148: - МБДОУ детский сад № 11 | C148: 20 | D148: 20 | E148: 1 | F148: 0 | G148: 20 | H148: 1 | I148: 0
B149: - МБДОУ детский сад № 12 | C149: 20 | D149: 20 | E149: =D149/C149 -> 1 | F149: =C149-D149 -> 0 | G149: 20 | H149: =G149/C149 -> 1 | I149: =D149-G149 -> 0
B150: - МБДОУ детский сад № 13 | C150: 15 | E150: =D150/C150 -> 0 | F150: =C150-D150 -> 15 | H150: =G150/C150 -> 0 | I150: =D150-G150 -> 0
B151: - МБДОУ детский сад № 15 | C151: 15 | D151: 15 | E151: 1 | F151: 0 | G151: 15 | H151: 1 | I151: 0
B152: Наказы избирателей депутатам областного Совета (для д/сада №10) | C152: 100 | D152: 100 | E152: 1 | F152: 0 | G152: 100 | H152: 1 | I152: 0
B153: Наказы избирателей депутатам областного Совета (для д/сада № 13) | C153: 100 | D153: 0 | E153: 0 | F153: =C153-D153 -> 100 | G153: 0 | H153: 0 | I153: =D153-G153 -> 0
B154: Резервный фонд Правительства Орловской обл.(замена оконных блоков в детских садах) | F154: =C154-D154 -> 0 | I154: =D154-G154 -> 0
B155: Федеральная целевая программа развития образования на 2011-2015 годы (оснащение дополнительно созданных мест в детском саду №13) | C155: =C156+C157 -> 0 | D155: =D156+D157 -> 0 | F155: =C155-D155 -> 0 | G155: =G156+G157 -> 0 | I155: =D155-G155 -> 0
B156: в т.ч.: - за счёт собственных средств | F156: =C156-D156 -> 0 | I156: =D156-G156 -> 0
B157: - за счёт федеральных средств | F157: =C157-D157 -> 0 | I157: =D157-G157 -> 0
A158: 07 01 | B158: Всего по учреждениям дошкольного образования | C158: =C159+C160 -> 124789 | D158: =D159+D160 -> 74276.3 | E158: 0.5952151231 | F158: =C158-D158 -> 50512.7 | G158: =G159+G160 -> 74276.3 | H158: 0.5952151231 | I158: 0
A159: в т.ч. | B159: - за счёт собственных средств | C159: =C114+C128 -> 124589 | D159: =D114+D128 -> 74176.3 | E159: 0.5953679699 | F159: 50412.7 | G159: =G114+G128 -> 74176.3 | H159: 0.5953679699 | I159: 0
B160: - за счёт федеральных и областных средств | C160: =C129 -> 200 | D160: =D129 -> 100 | E160: 0.5 | F160: 100 | G160: =G129 -> 100 | H160: 0.5 | I160: 0
A162: Субсидии общеобразовательным учреждениям - на выполнение муниципального задания (всего) | C162: =C163+C164 -> 175701.4 | D162: =D163+D164 -> 106971.9 | E162: =D162/C162 -> 0.6088278181 | F162: =C162-D162 -> 68729.5 | G162: =G163+G164 -> 106971.9 | H162: =G162/C162 -> 0.6088278181 | I162: =D162-G162 -> 0
B163: -за счёт собственных средств | C163: =C166 -> 20072 | D163: =D166 -> 14700.8 | E163: 0.7324033479 | F163: 5371.2 | G163: =G166 -> 14700.8 | H163: 0.7324033479 | I163: 0
B164: -за счёт областных средств | C164: =C167+C195 -> 155629.4 | D164: =D167+D195 -> 92271.1 | E164: 0.5928899038 | F164: 63358.3 | G164: =G167+G195 -> 92271.1 | H164: 0.5928899038 | I164: 0
A165: в том числе: | B165: Субсидии общеобразовательным учреждениям на обеспечение деятельности (всего) | C165: =C166+C167 -> 169858 | D165: =D166+D167 -> 103708.9 | E165: 0.6105623521 | F165: 66149.1 | G165: =G166+G167 -> 103708.9 | H165: 0.6105623521 | I165: 0
B166: -за счёт собственных средств (на содержание и обеспеч.деят.) | C166: =C169+C172+C175+C178+C181+C184+C187+C190+C193 -> 20072 | D166: =D169+D172+D175+D178+D181+D184+D187+D190+D193 -> 14700.8 | E166: 0.7324033479 | F166: 5371.2 | G166: =G169+G172+G175+G178+G181+G184+G187+G190+G193 -> 14700.8 | H166: 0.7324033479 | I166: 0
B167: -за счёт областных средств (на образовательный процесс) | C167: =C170+C173+C176+C179+C182+C185+C188+C191+C194 -> 149786 | D167: =D170+D173+D176+D179+D182+D185+D188+D191+D194 -> 89008.1 | E167: 0.5942351088 | F167: 60777.9 | G167: =G170+G173+G176+G179+G182+G185+G188+G191+G194 -> 89008.1 | H167: 0.5942351088 | I167: 0
B168: МБОУ средняя школа № 1 | C168: =C169+C170 -> 22484 | D168: =D169+D170 -> 13254.3 | E168: =D168/C168 -> 0.5894991994 | F168: 9229.7 | G168: =G169+G170 -> 13254.3 | H168: =G168/C168 -> 0.5894991994 | I168: 0
B169: -за счёт собственных средств (на содержание и обеспеч.деят.) | C169: 2278 | D169: 1659.9 | E169: 0.728665496 | F169: 618.1 | G169: 1659.9 | H169: 0.728665496 | I169: 0
B170: -за счёт областных средств (на образовательный процесс) | C170: 20206 | D170: 11594.4 | E170: 0.5738097595 | F170: 8611.6 | G170: 11594.4 | H170: 0.5738097595 | I170: 0
B171: МБОУ средняя школа № 2 | C171: =C172+C173 -> 12687.4 | D171: =D172+D173 -> 7866.6 | E171: 0.6200324732 | F171: 4820.8 | G171: =G172+G173 -> 7866.6 | H171: 0.6200324732 | I171: 0
B172: -за счёт собственных средств (на содержание и обеспеч.деят.) | C172: 854 | D172: 720 | E172: 0.8430913349 | F172: 134 | G172: 720 | H172: 0.8430913349 | I172: 0
B173: -за счёт областных средств (на образовательный процесс) | C173: 11833.4 | D173: 7146.6 | E173: 0.6039346257 | F173: 4686.8 | G173: 7146.6 | H173: 0.6039346257 | I173: 0
B174: МБОУ средняя школа № 3 | C174: =C175+C176 -> 13912.8 | D174: =D175+D176 -> 9164.8 | E174: 0.6587315278 | F174: 4748 | G174: =G175+G176 -> 9164.8 | H174: 0.6587315278 | I174: 0
B175: -за счёт собственных средств (на содержание и обеспеч.деят.) | C175: 809 | D175: 465 | E175: 0.5747836836 | F175: 344 | G175: 465 | H175: 0.5747836836 | I175: 0
B176: -за счёт областных средств (на образовательный процесс) | C176: 13103.8 | D176: 8699.8 | E176: 0.6639142844 | F176: 4404 | G176: 8699.8 | H176: 0.6639142844 | I176: 0
B177: МБОУ средняя школа № 4 | C177: =C178+C179 -> 14657.6 | D177: =D178+D179 -> 9856.6 | E177: 0.6724566095 | F177: 4801 | G177: =G178+G179 -> 9856.6 | H177: 0.6724566095 | I177: 0
B178: -за счёт собственных средств (на содержание и обеспеч.деят.) | C178: 1423 | D178: 1302.3 | E178: 0.9151791989 | F178: 120.7 | G178: 1302.3 | H178: 0.9151791989 | I178: 0
B179: -за счёт областных средств (на образовательный процесс) | C179: 13234.6 | D179: 8554.3 | E179: 0.6463587868 | F179: 4680.3 | G179: 8554.3 | H179: 0.6463587868 | I179: 0
B180: МБОУ - лицей № 5 | C180: =C181+C182 -> 18620.6 | D180: =D181+D182 -> 11109.4 | E180: 0.5966187985 | F180: 7511.2 | G180: =G181+G182 -> 11109.4 | H180: 0.5966187985 | I180: 0
B181: -за счёт собственных средств (на содержание и обеспеч.деят.) | C181: 2323 | D181: 1520.3 | E181: 0.6544554455 | F181: 802.7 | G181: 1520.3 | H181: 0.6544554455 | I181: 0
B182: -за счёт областных средств (на образовательный процесс) | C182: 16297.6 | D182: 9589.1 | E182: 0.5883749755 | F182: 6708.5 | G182: 9589.1 | H182: 0.5883749755 | I182: 0
B183: МБОУ средняя школа № 7 | C183: =C184+C185 -> 25619.8 | D183: =D184+D185 -> 15171.2 | E183: 0.5921669958 | F183: 10448.6 | G183: =G184+G185 -> 15171.2 | H183: 0.5921669958 | I183: 0
B184: -за счёт собственных средств (на содержание и обеспеч.деят.) | C184: 3000 | D184: 2483 | E184: 0.8276666667 | F184: 517 | G184: 2483 | H184: 0.8276666667 | I184: 0
B185: -за счёт областных средств (на образовательный процесс) | C185: 22619.8 | D185: 12688.2 | E185: 0.5609333416 | F185: 9931.6 | G185: 12688.2 | H185: 0.5609333416 | I185: 0
B186: МБОУ средняя школа № 8 | C186: =C187+C188 -> 12457.2 | D186: =D187+D188 -> 6857.9 | E186: 0.5505169701 | F186: 5599.3 | G186: =G187+G188 -> 6857.9 | H186: 0.5505169701 | I186: 0
B187: -за счёт собственных средств (на содержание и обеспеч.деят.) | C187: 1882 | D187: 1546.9 | E187: 0.8219447396 | F187: 335.1 | G187: 1546.9 | H187: 0.8219447396 | I187: 0
B188: -за счёт областных средств (на образовательный процесс) | C188: 10575.2 | D188: 5311 | E188: 0.5022127241 | F188: 5264.2 | G188: 5311 | H188: 0.5022127241 | I188: 0
B189: МБОУ средняя школа № 9 | C189: =C190+C191 -> 31406.2 | D189: =D190+D191 -> 18829.8 | E189: 0.5995567754 | F189: 12576.4 | G189: =G190+G191 -> 18829.8 | H189: 0.5995567754 | I189: 0
B190: -за счёт собственных средств (на содержание и обеспеч.деят.) | C190: 5745 | D190: 3549.4 | E190: 0.617824195 | F190: 2195.6 | G190: 3549.4 | H190: 0.617824195 | I190: 0
B191: -за счёт областных средств (на образовательный процесс) | C191: 25661.2 | D191: 15280.4 | E191: 0.5954670865 | F191: 10380.8 | G191: 15280.4 | H191: 0.5954670865 | I191: 0
B192: МБОУ гимназия города Мценска | C192: =C193+C194 -> 18012.4 | D192: =D193+D194 -> 11598.3 | E192: 0.64390642 | F192: 6414.1 | G192: =G193+G194 -> 11598.3 | H192: 0.64390642 | I192: =D192-G192 -> 0
B193: -за счёт собственных средств (на содержание и обеспеч.деят.) | C193: 1758 | D193: 1454 | E193: 0.827076223 | F193: 304 | G193: 1454 | H193: 0.827076223 | I193: =D193-G193 -> 0
B194: -за счёт областных средств (на образовательный процесс) | C194: 16254.4 | D194: 10144.3 | E194: 0.6240956295 | F194: 6110.1 | G194: 10144.3 | H194: 0.6240956295 | I194: =D194-G194 -> 0
B195: Ежемесячное денежное вознаграждение за классное руководство (всего) | C195: =C196+C197+C198+C199+C200+C201+C202+C203+C204 -> 5843.4 | D195: =D196+D197+D198+D199+D200+D201+D202+D203+D204 -> 3263 | E195: =D195/C195 -> 0.5584077763 | F195: =C195-D195 -> 2580.4 | G195: =G196+G197+G198+G199+G200+G201+G202+G203+G204 -> 3263 | H195: =G195/C195 -> 0.5584077763 | I195: =D195-G195 -> 0
B196: МБОУ средняя школа № 1 | C196: 860 | D196: 489.1 | E196: 0.5687209302 | F196: 370.9 | G196: 489.1 | H196: 0.5687209302 | I196: 0
B197: МБОУ средняя школа № 2 | C197: 360 | D197: 219.7 | E197: 0.6102777778 | F197: 140.3 | G197: 219.7 | H197: 0.6102777778 | I197: 0
B198: МБОУ средняя школа № 3 | C198: 358 | D198: 207.9 | E198: 0.580726257 | F198: 150.1 | G198: 207.9 | H198: 0.580726257 | I198: 0
B199: МБОУ средняя школа № 4 | C199: 636 | D199: 345 | E199: 0.5424528302 | F199: 291 | G199: 345 | H199: 0.5424528302 | I199: 0
B200: МБОУ - лицей № 5 | C200: 624 | D200: 357.9 | E200: 0.5735576923 | F200: 266.1 | G200: 357.9 | H200: 0.5735576923 | I200: 0
B201: МБОУ средняя школа № 7 | C201: 1006 | D201: 545.9 | E201: 0.5426441352 | F201: 460.1 | G201: 545.9 | H201: 0.5426441352 | I201: 0
B202: МБОУ средняя школа № 8 | C202: 378 | D202: 229.6 | E202: 0.6074074074 | F202: 148.4 | G202: 229.6 | H202: 0.6074074074 | I202: 0
B203: МБОУ средняя школа № 9 | C203: 1197.4 | D203: 668.4 | E203: 0.5582094538 | F203: 529 | G203: 668.4 | H203: 0.5582094538 | I203: 0
B204: МБОУ гимназия города Мценска | C204: 424 | D204: 199.5 | E204: 0.4705188679 | F204: 224.5 | G204: 199.5 | H204: 0.4705188679 | I204: 0
A207: Субсидии общеобразовательным учреждениям - на иные цели (всего) | C207: =C208+C209 -> 26203 | D207: =D208+D209 -> 13827.3 | E207: =D207/C207 -> 0.5276991184 | F207: 12375.7 | G207: =G208+G209 -> 13827.3 | H207: =G207/C207 -> 0.5276991184 | I207: 0
B208: -за счёт собственных средств | C208: =C211+C213+C223+C254 -> 9950 | D208: =D211+D213+D223+D254 -> 5555.6 | E208: 0.5583517588 | F208: 4394.4 | G208: =G211+G213+G223+G254 -> 5555.6 | H208: 0.5583517588 | I208: 0
... 206 more rows
